Workbook

Sheet wyniki
A1: VI Grand Prix Północy 2024 | G1: Miejsce i data: | J1: Dziemiany, 28.9.2024
A2: Zawody przeprowadził klub: | D2: S.K. FAMILY Dziemiany | G2: Kierownictwo: | J2: Marcin Żywicki
A3: Sędzia: | D3: Szatkowski Leszek | G3: Sekretariat: | J3: Marcin Żywicki
A4: Klasyfikacja zawodów | F4: S U M A | I4: I SERIA | L4: II SERIA | O4: II SERIA
A5: M-ce | B5: nr start. | C5: Nazwisko, Imię | D5: Klub | E5: Opłata | F5: Z gry | G5: w | H5: p | I5: Z gry1 | J5: w1 | K5: p1 | L5: Z gry2 | M5: w2 | N5: p2 | O5: Z gry3 | P5: w3 | Q5: p3
A6: 1. | B6: 10 | C6: Siemaszko Henryk | D6: Krajna Złotów | F6: =IF(Indywidualna[[#This Row],[Opłata]]="L",0,I6+L6+O6) -> 3434 | G6: =IF(Indywidualna[[#This Row],[Opłata]]=10,0,J6+M6+P6) -> 33 | H6: =IF(Indywidualna[[#This Row],[Opłata]]=10,0,K6+N6+Q6) -> 1 | I6: 1229 | J6: 13 | K6: 1 | L6: 1138 | M6: 11 | N6: 0 | O6: 1067 | P6: 9 | Q6: 0
A7: 2. | C7: Kozikowski Jan | D7: nz | F7: =IF(Indywidualna[[#This Row],[Opłata]]="L",0,I7+L7+O7) -> 2769 | G7: =IF(Indywidualna[[#This Row],[Opłata]]=10,0,J7+M7+P7) -> 24 | H7: =IF(Indywidualna[[#This Row],[Opłata]]=10,0,K7+N7+Q7) -> 3 | I7: 866 | J7: 6 | K7: 0 | L7: 1051 | M7: 10 | N7: 1 | O7: 852 | P7: 8 | Q7: 2
A8: 3. | C8: Tadeusz Maciej | D8: Krajna Złotów | F8: =IF(Indywidualna[[#This Row],[Opłata]]="L",0,I8+L8+O8) -> 2728 | G8: =IF(Indywidualna[[#This Row],[Opłata]]=10,0,J8+M8+P8) -> 27 | H8: =IF(Indywidualna[[#This Row],[Opłata]]=10,0,K8+N8+Q8) -> 5 | I8: 863 | J8: 8 | K8: 0 | L8: 919 | M8: 9 | N8: 3 | O8: 946 | P8: 10 | Q8: 2
A9: 4. | B9: 3 | C9: Moch Ireneusz | D9: Fala Świekatowo | F9: =IF(Indywidualna[[#This Row],[Opłata]]="L",0,I9+L9+O9) -> 2551 | G9: =IF(Indywidualna[[#This Row],[Opłata]]=10,0,J9+M9+P9) -> 25 | H9: =IF(Indywidualna[[#This Row],[Opłata]]=10,0,K9+N9+Q9) -> 1 | I9: 1102 | J9: 10 | K9: 0 | L9: 1069 | M9: 10 | N9: 0 | O9: 380 | P9: 5 | Q9: 1
A10: 5. | B10: 11 | C10: Szatkowski Leszek | D10: Krajna Złotów | F10: =IF(Indywidualna[[#This Row],[Opłata]]="L",0,I10+L10+O10) -> 2514 | G10: =IF(Indywidualna[[#This Row],[Opłata]]=10,0,J10+M10+P10) -> 29 | H10: =IF(Indywidualna[[#This Row],[Opłata]]=10,0,K10+N10+Q10) -> 8 | I10: 1279 | J10: 13 | K10: 1 | L10: 60 | M10: 5 | N10: 5 | O10: 1175 | P10: 11 | Q10: 2
A11: 6. | C11: Kubiszewski Bartosz | D11: S.K. FAMILY Dziemiany | F11: =IF(Indywidualna[[#This Row],[Opłata]]="L",0,I11+L11+O11) -> 2505 | G11: =IF(Indywidualna[[#This Row],[Opłata]]=10,0,J11+M11+P11) -> 22 | H11: =IF(Indywidualna[[#This Row],[Opłata]]=10,0,K11+N11+Q11) -> 2 | I11: 1039 | J11: 10 | K11: 0 | L11: 444 | M11: 5 | N11: 2 | O11: 1022 | P11: 7 | Q11: 0
A12: 7. | B12: 15 | C12: Piasecki Jan | D12: Krajna Złotów | F12: =IF(Indywidualna[[#This Row],[Opłata]]="L",0,I12+L12+O12) -> 2438 | G12: =IF(Indywidualna[[#This Row],[Opłata]]=10,0,J12+M12+P12) -> 26 | H12: =IF(Indywidualna[[#This Row],[Opłata]]=10,0,K12+N12+Q12) -> 5 | I12: 848 | J12: 8 | K12: 1 | L12: 626 | M12: 7 | N12: 2 | O12: 964 | P12: 11 | Q12: 2
A13: 8. | C13: Kozikowski Bogusław | D13: nz | F13: =IF(Indywidualna[[#This Row],[Opłata]]="L",0,I13+L13+O13) -> 2433 | G13: =IF(Indywidualna[[#This Row],[Opłata]]=10,0,J13+M13+P13) -> 19 | H13: =IF(Indywidualna[[#This Row],[Opłata]]=10,0,K13+N13+Q13) -> 1 | I13: 894 | J13: 8 | K13: 0 | L13: 527 | M13: 5 | N13: 1 | O13: 1012 | P13: 6 | Q13: 0
A14: 9. | B14: 27 | C14: Mikołajczyk Tomasz | D14: S.K. FAMILY Dziemiany | F14: =IF(Indywidualna[[#This Row],[Opłata]]="L",0,I14+L14+O14) -> 2326 | G14: =IF(Indywidualna[[#This Row],[Opłata]]=10,0,J14+M14+P14) -> 25 | H14: =IF(Indywidualna[[#This Row],[Opłata]]=10,0,K14+N14+Q14) -> 5 | I14: 1322 | J14: 11 | K14: 0 | L14: 395 | M14: 5 | N14: 1 | O14: 609 | P14: 9 | Q14: 4
A15: 10. | B15: 26 | C15: Mikołajczyk Rafał | D15: S.K. FAMILY Dziemiany | F15: =IF(Indywidualna[[#This Row],[Opłata]]="L",0,I15+L15+O15) -> 2293 | G15: =IF(Indywidualna[[#This Row],[Opłata]]=10,0,J15+M15+P15) -> 28 | H15: =IF(Indywidualna[[#This Row],[Opłata]]=10,0,K15+N15+Q15) -> 5 | I15: 590 | J15: 7 | K15: 1 | L15: 995 | M15: 10 | N15: 1 | O15: 708 | P15: 11 | Q15: 3
A16: 11. | B16: 2 | C16: Glama Stanisław | D16: Fala Świekatowo | F16: =IF(Indywidualna[[#This Row],[Opłata]]="L",0,I16+L16+O16) -> 2288 | G16: =IF(Indywidualna[[#This Row],[Opłata]]=10,0,J16+M16+P16) -> 26 | H16: =IF(Indywidualna[[#This Row],[Opłata]]=10,0,K16+N16+Q16) -> 5 | I16: 890 | J16: 7 | K16: 0 | L16: 941 | M16: 12 | N16: 2 | O16: 457 | P16: 7 | Q16: 3
A17: 12. | C17: Przybyłka Elżbieta | D17: Krajna Złotów | F17: =IF(Indywidualna[[#This Row],[Opłata]]="L",0,I17+L17+O17) -> 2272 | G17: =IF(Indywidualna[[#This Row],[Opłata]]=10,0,J17+M17+P17) -> 20 | H17: =IF(Indywidualna[[#This Row],[Opłata]]=10,0,K17+N17+Q17) -> 2 | I17: 472 | J17: 5 | K17: 1 | L17: 842 | M17: 7 | N17: 1 | O17: 958 | P17: 8 | Q17: 0
A18: 13. | C18: Jędrzejczak Jerzy | D18: GOKSiR Liniewo | F18: =IF(Indywidualna[[#This Row],[Opłata]]="L",0,I18+L18+O18) -> 2236 | G18: =IF(Indywidualna[[#This Row],[Opłata]]=10,0,J18+M18+P18) -> 28 | H18: =IF(Indywidualna[[#This Row],[Opłata]]=10,0,K18+N18+Q18) -> 7 | I18: 719 | J18: 9 | K18: 1 | L18: 934 | M18: 9 | N18: 3 | O18: 583 | P18: 10 | Q18: 3
A19: 14. | B19: 4 | C19: Szatkowski Mirosław | D19: Fala Świekatowo | F19: =IF(Indywidualna[[#This Row],[Opłata]]="L",0,I19+L19+O19) -> 2120 | G19: =IF(Indywidualna[[#This Row],[Opłata]]=10,0,J19+M19+P19) -> 29 | H19: =IF(Indywidualna[[#This Row],[Opłata]]=10,0,K19+N19+Q19) -> 8 | I19: 890 | J19: 9 | K19: 1 | L19: 530 | M19: 10 | N19: 4 | O19: 700 | P19: 10 | Q19: 3
A20: 15. | B20: 5 | C20: Narloch Stanisław | D20: GOKSiR Liniewo | F20: =IF(Indywidualna[[#This Row],[Opłata]]="L",0,I20+L20+O20) -> 2104 | G20: =IF(Indywidualna[[#This Row],[Opłata]]=10,0,J20+M20+P20) -> 24 | H20: =IF(Indywidualna[[#This Row],[Opłata]]=10,0,K20+N20+Q20) -> 6 | I20: 558 | J20: 6 | K20: 1 | L20: 1510 | M20: 14 | N20: 0 | O20: 36 | P20: 4 | Q20: 5
A21: 16. | B21: 1 | C21: Szneidrowski Marek | D21: Fala Świekatowo | F21: =IF(Indywidualna[[#This Row],[Opłata]]="L",0,I21+L21+O21) -> 2104 | G21: =IF(Indywidualna[[#This Row],[Opłata]]=10,0,J21+M21+P21) -> 17 | H21: =IF(Indywidualna[[#This Row],[Opłata]]=10,0,K21+N21+Q21) -> 0 | I21: 449 | J21: 3 | K21: 0 | L21: 857 | M21: 7 | N21: 0 | O21: 798 | P21: 7 | Q21: 0
A22: 17. | C22: Felski Kazimierz | D22: nz | F22: =IF(Indywidualna[[#This Row],[Opłata]]="L",0,I22+L22+O22) -> 2068 | G22: =IF(Indywidualna[[#This Row],[Opłata]]=10,0,J22+M22+P22) -> 19 | H22: =IF(Indywidualna[[#This Row],[Opłata]]=10,0,K22+N22+Q22) -> 3 | I22: 534 | J22: 4 | K22: 1 | L22: 711 | M22: 6 | N22: 0 | O22: 823 | P22: 9 | Q22: 2
A23: 18. | B23: 21 | C23: Pawlicki Andrzej | D23: MOKSiR Puck | F23: =IF(Indywidualna[[#This Row],[Opłata]]="L",0,I23+L23+O23) -> 2039 | G23: =IF(Indywidualna[[#This Row],[Opłata]]=10,0,J23+M23+P23) -> 22 | H23: =IF(Indywidualna[[#This Row],[Opłata]]=10,0,K23+N23+Q23) -> 4 | I23: 759 | J23: 7 | K23: 0 | L23: 698 | M23: 8 | N23: 2 | O23: 582 | P23: 7 | Q23: 2
A24: 19. | B24: 18 | C24: Baran Adam | D24: MOKSiR Puck | F24: =IF(Indywidualna[[#This Row],[Opłata]]="L",0,I24+L24+O24) -> 2005 | G24: =IF(Indywidualna[[#This Row],[Opłata]]=10,0,J24+M24+P24) -> 27 | H24: =IF(Indywidualna[[#This Row],[Opłata]]=10,0,K24+N24+Q24) -> 8 | I24: 624 | J24: 6 | K24: 1 | L24: 1121 | M24: 11 | N24: 1 | O24: 260 | P24: 10 | Q24: 6
A25: 20. | B25: 9 | C25: Biniakiewicz Marian | D25: Krajna Złotów | F25: =IF(Indywidualna[[#This Row],[Opłata]]="L",0,I25+L25+O25) -> 1997 | G25: =IF(Indywidualna[[#This Row],[Opłata]]=10,0,J25+M25+P25) -> 23 | H25: =IF(Indywidualna[[#This Row],[Opłata]]=10,0,K25+N25+Q25) -> 7 | I25: 344 | J25: 6 | K25: 3 | L25: 1436 | M25: 14 | N25: 1 | O25: 217 | P25: 3 | Q25: 3
A26: 21. | C26: Kujaszewski Kazimierz | D26: S.K. FAMILY Dziemiany | F26: =IF(Indywidualna[[#This Row],[Opłata]]="L",0,I26+L26+O26) -> 1941 | G26: =IF(Indywidualna[[#This Row],[Opłata]]=10,0,J26+M26+P26) -> 25 | H26: =IF(Indywidualna[[#This Row],[Opłata]]=10,0,K26+N26+Q26) -> 8 | I26: 774 | J26: 12 | K26: 4 | L26: 363 | M26: 7 | N26: 4 | O26: 804 | P26: 6 | Q26: 0
A27: 22. | B27: 24 | C27: Muża Jan | D27: MOKSiR Puck | F27: =IF(Indywidualna[[#This Row],[Opłata]]="L",0,I27+L27+O27) -> 1933 | G27: =IF(Indywidualna[[#This Row],[Opłata]]=10,0,J27+M27+P27) -> 17 | H27: =IF(Indywidualna[[#This Row],[Opłata]]=10,0,K27+N27+Q27) -> 4 | I27: 904 | J27: 8 | K27: 1 | L27: 553 | M27: 4 | N27: 1 | O27: 476 | P27: 5 | Q27: 2
A28: 23. | B28: 25 | C28: Mikołajczyk Paweł | D28: S.K. FAMILY Dziemiany | F28: =IF(Indywidualna[[#This Row],[Opłata]]="L",0,I28+L28+O28) -> 1921 | G28: =IF(Indywidualna[[#This Row],[Opłata]]=10,0,J28+M28+P28) -> 22 | H28: =IF(Indywidualna[[#This Row],[Opłata]]=10,0,K28+N28+Q28) -> 8 | I28: 563 | J28: 7 | K28: 2 | L28: 730 | M28: 7 | N28: 3 | O28: 628 | P28: 8 | Q28: 3
A29: 24. | B29: 8 | C29: Wróbel Teresa | D29: GOKSiR Liniewo | F29: =IF(Indywidualna[[#This Row],[Opłata]]="L",0,I29+L29+O29) -> 1913 | G29: =IF(Indywidualna[[#This Row],[Opłata]]=10,0,J29+M29+P29) -> 19 | H29: =IF(Indywidualna[[#This Row],[Opłata]]=10,0,K29+N29+Q29) -> 5 | I29: 759 | J29: 7 | K29: 1 | L29: 720 | M29: 8 | N29: 3 | O29: 434 | P29: 4 | Q29: 1
A30: 25. | B30: 17 | C30: Bekisz Zdzisław | D30: MOKSiR Puck | F30: =IF(Indywidualna[[#This Row],[Opłata]]="L",0,I30+L30+O30) -> 1903 | G30: =IF(Indywidualna[[#This Row],[Opłata]]=10,0,J30+M30+P30) -> 18 | H30: =IF(Indywidualna[[#This Row],[Opłata]]=10,0,K30+N30+Q30) -> 4 | I30: 1102 | J30: 10 | K30: 1 | L30: -24 | M30: 3 | N30: 3 | O30: 825 | P30: 5 | Q30: 0
A31: 26. | B31: 19 | C31: Mikołajczyk Szymon | D31: S.K. FAMILY Dziemiany | F31: =IF(Indywidualna[[#This Row],[Opłata]]="L",0,I31+L31+O31) -> 1810 | G31: =IF(Indywidualna[[#This Row],[Opłata]]=10,0,J31+M31+P31) -> 19 | H31: =IF(Indywidualna[[#This Row],[Opłata]]=10,0,K31+N31+Q31) -> 5 | I31: 301 | J31: 4 | K31: 2 | L31: 862 | M31: 9 | N31: 1 | O31: 647 | P31: 6 | Q31: 2
A32: 27. | C32: Bekisz Kazimierz | D32: nz | F32: =IF(Indywidualna[[#This Row],[Opłata]]="L",0,I32+L32+O32) -> 1792 | G32: =IF(Indywidualna[[#This Row],[Opłata]]=10,0,J32+M32+P32) -> 20 | H32: =IF(Indywidualna[[#This Row],[Opłata]]=10,0,K32+N32+Q32) -> 7 | I32: 933 | J32: 7 | K32: 1 | L32: 242 | M32: 5 | N32: 4 | O32: 617 | P32: 8 | Q32: 2
A33: 28. | B33: 14 | C33: Bełka Jan | D33: Krajna Złotów | F33: =IF(Indywidualna[[#This Row],[Opłata]]="L",0,I33+L33+O33) -> 1761 | G33: =IF(Indywidualna[[#This Row],[Opłata]]=10,0,J33+M33+P33) -> 22 | H33: =IF(Indywidualna[[#This Row],[Opłata]]=10,0,K33+N33+Q33) -> 8 | I33: 1130 | J33: 12 | K33: 2 | L33: 254 | M33: 7 | N33: 4 | O33: 377 | P33: 3 | Q33: 2
A34: 29. | B34: 22 | C34: Radtke Marek | D34: MOKSiR Puck | F34: =IF(Indywidualna[[#This Row],[Opłata]]="L",0,I34+L34+O34) -> 1684 | G34: =IF(Indywidualna[[#This Row],[Opłata]]=10,0,J34+M34+P34) -> 21 | H34: =IF(Indywidualna[[#This Row],[Opłata]]=10,0,K34+N34+Q34) -> 8 | I34: 400 | J34: 6 | K34: 2 | L34: 492 | M34: 6 | N34: 3 | O34: 792 | P34: 9 | Q34: 3
A35: 30. | C35: Faruga Jan | D35: TS Pszczyna | F35: =IF(Indywidualna[[#This Row],[Opłata]]="L",0,I35+L35+O35) -> 1508 | G35: =IF(Indywidualna[[#This Row],[Opłata]]=10,0,J35+M35+P35) -> 10 | H35: =IF(Indywidualna[[#This Row],[Opłata]]=10,0,K35+N35+Q35) -> 3 | I35: 412 | J35: 3 | K35: 2 | L35: 422 | M35: 2 | N35: 0 | O35: 674 | P35: 5 | Q35: 1
A36: 31. | B36: 7 | C36: Wirkus Józef | D36: GOKSiR Liniewo | F36: =IF(Indywidualna[[#This Row],[Opłata]]="L",0,I36+L36+O36) -> 1494 | G36: =IF(Indywidualna[[#This Row],[Opłata]]=10,0,J36+M36+P36) -> 16 | H36: =IF(Indywidualna[[#This Row],[Opłata]]=10,0,K36+N36+Q36) -> 4 | I36: 353 | J36: 6 | K36: 2 | L36: 293 | M36: 3 | N36: 2 | O36: 848 | P36: 7 | Q36: 0
A37: 32. | C37: Warnke Tadeusz | D37: nz | F37: =IF(Indywidualna[[#This Row],[Opłata]]="L",0,I37+L37+O37) -> 1461 | G37: =IF(Indywidualna[[#This Row],[Opłata]]=10,0,J37+M37+P37) -> 15 | H37: =IF(Indywidualna[[#This Row],[Opłata]]=10,0,K37+N37+Q37) -> 4 | I37: 548 | J37: 6 | K37: 2 | L37: 296 | M37: 5 | N37: 2 | O37: 617 | P37: 4 | Q37: 0
A38: 33. | B38: 6 | C38: Gostomski Zenon | D38: GOKSiR Liniewo | F38: =IF(Indywidualna[[#This Row],[Opłata]]="L",0,I38+L38+O38) -> 1412 | G38: =IF(Indywidualna[[#This Row],[Opłata]]=10,0,J38+M38+P38) -> 10 | H38: =IF(Indywidualna[[#This Row],[Opłata]]=10,0,K38+N38+Q38) -> 1 | I38: 540 | J38: 6 | K38: 1 | L38: 392 | M38: 1 | N38: 0 | O38: 480 | P38: 3 | Q38: 0
A39: 34. | B39: 28 | C39: Kujawski Łukasz | D39: S.K. FAMILY Dziemiany | F39: =IF(Indywidualna[[#This Row],[Opłata]]="L",0,I39+L39+O39) -> 1349 | G39: =IF(Indywidualna[[#This Row],[Opłata]]=10,0,J39+M39+P39) -> 19 | H39: =IF(Indywidualna[[#This Row],[Opłata]]=10,0,K39+N39+Q39) -> 7 | I39: 70 | J39: 4 | K39: 4 | L39: 644 | M39: 7 | N39: 0 | O39: 635 | P39: 8 | Q39: 3
A40: 35. | B40: 13 | C40: Kowalski Konrad | D40: Krajna Złotów | F40: =IF(Indywidualna[[#This Row],[Opłata]]="L",0,I40+L40+O40) -> 1318 | G40: =IF(Indywidualna[[#This Row],[Opłata]]=10,0,J40+M40+P40) -> 22 | H40: =IF(Indywidualna[[#This Row],[Opłata]]=10,0,K40+N40+Q40) -> 9 | I40: 774 | J40: 9 | K40: 1 | L40: 164 | M40: 6 | N40: 4 | O40: 380 | P40: 7 | Q40: 4
A41: 36. | B41: 20 | C41: Mikołajczyk Nadia | D41: S.K. FAMILY Dziemiany | F41: =IF(Indywidualna[[#This Row],[Opłata]]="L",0,I41+L41+O41) -> 1292 | G41: =IF(Indywidualna[[#This Row],[Opłata]]=10,0,J41+M41+P41) -> 14 | H41: =IF(Indywidualna[[#This Row],[Opłata]]=10,0,K41+N41+Q41) -> 4 | I41: 215 | J41: 4 | K41: 3 | L41: 384 | M41: 4 | N41: 1 | O41: 693 | P41: 6 | Q41: 0
A42: 37. | C42: Borzyszkowski Ryszard | D42: S.K. FAMILY Dziemiany | F42: =IF(Indywidualna[[#This Row],[Opłata]]="L",0,I42+L42+O42) -> 1257 | G42: =IF(Indywidualna[[#This Row],[Opłata]]=10,0,J42+M42+P42) -> 14 | H42: =IF(Indywidualna[[#This Row],[Opłata]]=10,0,K42+N42+Q42) -> 4 | I42: 360 | J42: 5 | K42: 1 | L42: 428 | M42: 4 | N42: 2 | O42: 469 | P42: 5 | Q42: 1
A43: 38. | B43: 23 | C43: Szczypior Stefan | D43: MOKSiR Puck | F43: =IF(Indywidualna[[#This Row],[Opłata]]="L",0,I43+L43+O43) -> 1197 | G43: =IF(Indywidualna[[#This Row],[Opłata]]=10,0,J43+M43+P43) -> 13 | H43: =IF(Indywidualna[[#This Row],[Opłata]]=10,0,K43+N43+Q43) -> 4 | I43: 22 | J43: 2 | K43: 2 | L43: 539 | M43: 6 | N43: 1 | O43: 636 | P43: 5 | Q43: 1
A44: 39. | B44: 12 | C44: Bianga Edward | D44: Krajna Złotów | F44: =IF(Indywidualna[[#This Row],[Opłata]]="L",0,I44+L44+O44) -> 1117 | G44: =IF(Indywidualna[[#This Row],[Opłata]]=10,0,J44+M44+P44) -> 16 | H44: =IF(Indywidualna[[#This Row],[Opłata]]=10,0,K44+N44+Q44) -> 5 | I44: 587 | J44: 7 | K44: 1 | L44: 771 | M44: 7 | N44: 0 | O44: -241 | P44: 2 | Q44: 4
A45: 40. | B45: 16 | C45: Kazimierowski Stanisław | D45: Krajna Złotów | F45: =IF(Indywidualna[[#This Row],[Opłata]]="L",0,I45+L45+O45) -> 1026 | G45: =IF(Indywidualna[[#This Row],[Opłata]]=10,0,J45+M45+P45) -> 15 | H45: =IF(Indywidualna[[#This Row],[Opłata]]=10,0,K45+N45+Q45) -> 7 | I45: 91 | J45: 5 | K45: 5 | L45: 535 | M45: 5 | N45: 1 | O45: 400 | P45: 5 | Q45: 1

Sheet ile_zawodniow
A1: ZAWODNIKÓW: | B1: =SUM(B3:B9) -> 0
A2: STOŁÓW: | B2: =ROUNDUP(B1/4,0) -> 0
A3: MOKSiR Puck | B3: =COUNTIFS(Indywidualna[Opłata],">0",Indywidualna[Klub],A3) -> 0
A4: GOKSiR Lipusz | B4: =COUNTIFS(Indywidualna[Opłata],">0",Indywidualna[Klub],A4) -> 0
A5: GOKSiR Liniewo | B5: =COUNTIFS(Indywidualna[Opłata],">0",Indywidualna[Klub],A5) -> 0
A6: S.K. FAMILY Dziemiany | B6: =COUNTIFS(Indywidualna[Opłata],">0",Indywidualna[Klub],A6) -> 0
A7: KS KRAJNA Złotów | B7: =COUNTIFS(Indywidualna[Opłata],">0",Indywidualna[Klub],A7) -> 0
A8: FALA Świekatowo | B8: =COUNTIFS(Indywidualna[Opłata],">0",Indywidualna[Klub],A8) -> 0
A9: niezrzeszony | B9: =COUNTIFS(Indywidualna[Opłata],">0",Indywidualna[Klub],A9) -> 0

Sheet liga
A1: Liga Okręgu Pólnoc
A2: Gospodarz zawodów: | C2: GOKSiR Liniewo | I2: Data | J2: Liniewo, 16.6.2024
A3: Kierownik zawodów: | C3: Narloch Stanisław | I3: Sędzia:
A5: Drużyna | C5: RAZEM | F5: I SERIA | I5: II SERIA | L5: III SERIA
A6: MOKSiR Puck | C6: m.p | D6: w | E6: p | F6: m.p | G6: w | H6: p | I6: m.p | J6: w | K6: p | L6: m.p | M6: w | N6: p
A7: 17 | B7: =_xlfn.IFNA(VLOOKUP(A7,Indywidualna[],2,0),0) -> Bekisz Zdzisław | C7: =I7+L7+F7 -> 1903 | D7: =J7+M7+G7 -> 18 | E7: =K7+N7+H7 -> 4 | F7: =_xlfn.IFNA(VLOOKUP($A7,Indywidualna[],COLUMNS($F6:F6)+7,0),0) -> 1102 | G7: =_xlfn.IFNA(VLOOKUP($A7,Indywidualna[],COLUMNS($F6:G6)+7,0),0) -> 10 | H7: =_xlfn.IFNA(VLOOKUP($A7,Indywidualna[],COLUMNS($F6:H6)+7,0),0) -> 1 | I7: =_xlfn.IFNA(VLOOKUP($A7,Indywidualna[],COLUMNS($F6:I6)+7,0),0) -> -24 | J7: =_xlfn.IFNA(VLOOKUP($A7,Indywidualna[],COLUMNS($F6:J6)+7,0),0) -> 3 | K7: =_xlfn.IFNA(VLOOKUP($A7,Indywidualna[],COLUMNS($F6:K6)+7,0),0) -> 3 | L7: =_xlfn.IFNA(VLOOKUP($A7,Indywidualna[],COLUMNS($F6:L6)+7,0),0) -> 825 | M7: =_xlfn.IFNA(VLOOKUP($A7,Indywidualna[],COLUMNS($F6:M6)+7,0),0) -> 5 | N7: =_xlfn.IFNA(VLOOKUP($A7,Indywidualna[],COLUMNS($F6:N6)+7,0),0) -> 0
A8: 18 | B8: =_xlfn.IFNA(VLOOKUP(A8,Indywidualna[],2,0),0) -> Baran Adam | C8: =I8+L8+F8 -> 2005 | D8: =J8+M8+G8 -> 27 | E8: =K8+N8+H8 -> 8 | F8: =_xlfn.IFNA(VLOOKUP($A8,Indywidualna[],COLUMNS($F7:F7)+7,0),0) -> 624 | G8: =_xlfn.IFNA(VLOOKUP($A8,Indywidualna[],COLUMNS($F7:G7)+7,0),0) -> 6 | H8: =_xlfn.IFNA(VLOOKUP($A8,Indywidualna[],COLUMNS($F7:H7)+7,0),0) -> 1 | I8: =_xlfn.IFNA(VLOOKUP($A8,Indywidualna[],COLUMNS($F7:I7)+7,0),0) -> 1121 | J8: =_xlfn.IFNA(VLOOKUP($A8,Indywidualna[],COLUMNS($F7:J7)+7,0),0) -> 11 | K8: =_xlfn.IFNA(VLOOKUP($A8,Indywidualna[],COLUMNS($F7:K7)+7,0),0) -> 1 | L8: =_xlfn.IFNA(VLOOKUP($A8,Indywidualna[],COLUMNS($F7:L7)+7,0),0) -> 260 | M8: =_xlfn.IFNA(VLOOKUP($A8,Indywidualna[],COLUMNS($F7:M7)+7,0),0) -> 10 | N8: =_xlfn.IFNA(VLOOKUP($A8,Indywidualna[],COLUMNS($F7:N7)+7,0),0) -> 6
A9: 19 | B9: =_xlfn.IFNA(VLOOKUP(A9,Indywidualna[],2,0),0) -> Mikołajczyk Szymon | C9: =I9+L9+F9 -> 1810 | D9: =J9+M9+G9 -> 19 | E9: =K9+N9+H9 -> 5 | F9: =_xlfn.IFNA(VLOOKUP($A9,Indywidualna[],COLUMNS($F8:F8)+7,0),0) -> 301 | G9: =_xlfn.IFNA(VLOOKUP($A9,Indywidualna[],COLUMNS($F8:G8)+7,0),0) -> 4 | H9: =_xlfn.IFNA(VLOOKUP($A9,Indywidualna[],COLUMNS($F8:H8)+7,0),0) -> 2 | I9: =_xlfn.IFNA(VLOOKUP($A9,Indywidualna[],COLUMNS($F8:I8)+7,0),0) -> 862 | J9: =_xlfn.IFNA(VLOOKUP($A9,Indywidualna[],COLUMNS($F8:J8)+7,0),0) -> 9 | K9: =_xlfn.IFNA(VLOOKUP($A9,Indywidualna[],COLUMNS($F8:K8)+7,0),0) -> 1 | L9: =_xlfn.IFNA(VLOOKUP($A9,Indywidualna[],COLUMNS($F8:L8)+7,0),0) -> 647 | M9: =_xlfn.IFNA(VLOOKUP($A9,Indywidualna[],COLUMNS($F8:M8)+7,0),0) -> 6 | N9: =_xlfn.IFNA(VLOOKUP($A9,Indywidualna[],COLUMNS($F8:N8)+7,0),0) -> 2
A10: 20 | B10: =_xlfn.IFNA(VLOOKUP(A10,Indywidualna[],2,0),0) -> Mikołajczyk Nadia | C10: =I10+L10+F10 -> 1292 | D10: =J10+M10+G10 -> 14 | E10: =K10+N10+H10 -> 4 | F10: =_xlfn.IFNA(VLOOKUP($A10,Indywidualna[],COLUMNS($F9:F9)+7,0),0) -> 215 | G10: =_xlfn.IFNA(VLOOKUP($A10,Indywidualna[],COLUMNS($F9:G9)+7,0),0) -> 4 | H10: =_xlfn.IFNA(VLOOKUP($A10,Indywidualna[],COLUMNS($F9:H9)+7,0),0) -> 3 | I10: =_xlfn.IFNA(VLOOKUP($A10,Indywidualna[],COLUMNS($F9:I9)+7,0),0) -> 384 | J10: =_xlfn.IFNA(VLOOKUP($A10,Indywidualna[],COLUMNS($F9:J9)+7,0),0) -> 4 | K10: =_xlfn.IFNA(VLOOKUP($A10,Indywidualna[],COLUMNS($F9:K9)+7,0),0) -> 1 | L10: =_xlfn.IFNA(VLOOKUP($A10,Indywidualna[],COLUMNS($F9:L9)+7,0),0) -> 693 | M10: =_xlfn.IFNA(VLOOKUP($A10,Indywidualna[],COLUMNS($F9:M9)+7,0),0) -> 6 | N10: =_xlfn.IFNA(VLOOKUP($A10,Indywidualna[],COLUMNS($F9:N9)+7,0),0) -> 0
B11: =_xlfn.IFNA(VLOOKUP(A11,Indywidualna[],2,0),0) -> 0 | C11: =I11+L11+F11 -> 0 | D11: =J11+M11+G11 -> 0 | E11: =K11+N11+H11 -> 0 | F11: =_xlfn.IFNA(VLOOKUP($A11,Indywidualna[],COLUMNS($F10:F10)+7,0),0) -> 0 | G11: =_xlfn.IFNA(VLOOKUP($A11,Indywidualna[],COLUMNS($F10:G10)+7,0),0) -> 0 | H11: =_xlfn.IFNA(VLOOKUP($A11,Indywidualna[],COLUMNS($F10:H10)+7,0),0) -> 0 | I11: =_xlfn.IFNA(VLOOKUP($A11,Indywidualna[],COLUMNS($F10:I10)+7,0),0) -> 0 | J11: =_xlfn.IFNA(VLOOKUP($A11,Indywidualna[],COLUMNS($F10:J10)+7,0),0) -> 0 | K11: =_xlfn.IFNA(VLOOKUP($A11,Indywidualna[],COLUMNS($F10:K10)+7,0),0) -> 0 | L11: =_xlfn.IFNA(VLOOKUP($A11,Indywidualna[],COLUMNS($F10:L10)+7,0),0) -> 0 | M11: =_xlfn.IFNA(VLOOKUP($A11,Indywidualna[],COLUMNS($F10:M10)+7,0),0) -> 0 | N11: =_xlfn.IFNA(VLOOKUP($A11,Indywidualna[],COLUMNS($F10:N10)+7,0),0) -> 0
A12: Podpis Kapitana | C12: =SUM(C7:C11) -> 7010 | D12: =SUM(D7:D11) -> 78 | E12: =SUM(E7:E11) -> 21 | F12: =SUM(F7:F11) -> 2242 | G12: =SUM(G7:G11) -> 24 | H12: =SUM(H7:H11) -> 7 | I12: =SUM(I7:I11) -> 2343 | J12: =SUM(J7:J11) -> 27 | K12: =SUM(K7:K11) -> 6 | L12: =SUM(L7:L11) -> 2425 | M12: =SUM(M7:M11) -> 27 | N12: =SUM(N7:N11) -> 8
A14: Drużyna | C14: RAZEM | F14: I SERIA | I14: II SERIA | L14: III SERIA
A15: MOKSiR Puck II | C15: m.p | D15: w | E15: p | F15: m.p | G15: w | H15: p | I15: m.p | J15: w | K15: p | L15: m.p | M15: w | N15: p
A16: 21 | B16: =_xlfn.IFNA(VLOOKUP(A16,Indywidualna[],2,0),0) -> Pawlicki Andrzej | C16: =F16+I16+L16 -> 2039 | D16: =G16+J16+M16 -> 22 | E16: =H16+K16+N16 -> 4 | F16: =_xlfn.IFNA(VLOOKUP($A16,Indywidualna[],COLUMNS($F15:F15)+7,0),0) -> 759 | G16: =_xlfn.IFNA(VLOOKUP($A16,Indywidualna[],COLUMNS($F15:G15)+7,0),0) -> 7 | H16: =_xlfn.IFNA(VLOOKUP($A16,Indywidualna[],COLUMNS($F15:H15)+7,0),0) -> 0 | I16: =_xlfn.IFNA(VLOOKUP($A16,Indywidualna[],COLUMNS($F15:I15)+7,0),0) -> 698 | J16: =_xlfn.IFNA(VLOOKUP($A16,Indywidualna[],COLUMNS($F15:J15)+7,0),0) -> 8 | K16: =_xlfn.IFNA(VLOOKUP($A16,Indywidualna[],COLUMNS($F15:K15)+7,0),0) -> 2 | L16: =_xlfn.IFNA(VLOOKUP($A16,Indywidualna[],COLUMNS($F15:L15)+7,0),0) -> 582 | M16: =_xlfn.IFNA(VLOOKUP($A16,Indywidualna[],COLUMNS($F15:M15)+7,0),0) -> 7 | N16: =_xlfn.IFNA(VLOOKUP($A16,Indywidualna[],COLUMNS($F15:N15)+7,0),0) -> 2
A17: 22 | B17: =_xlfn.IFNA(VLOOKUP(A17,Indywidualna[],2,0),0) -> Radtke Marek | C17: =F17+I17+L17 -> 1684 | D17: =G17+J17+M17 -> 21 | E17: =H17+K17+N17 -> 8 | F17: =_xlfn.IFNA(VLOOKUP($A17,Indywidualna[],COLUMNS($F16:F16)+7,0),0) -> 400 | G17: =_xlfn.IFNA(VLOOKUP($A17,Indywidualna[],COLUMNS($F16:G16)+7,0),0) -> 6 | H17: =_xlfn.IFNA(VLOOKUP($A17,Indywidualna[],COLUMNS($F16:H16)+7,0),0) -> 2 | I17: =_xlfn.IFNA(VLOOKUP($A17,Indywidualna[],COLUMNS($F16:I16)+7,0),0) -> 492 | J17: =_xlfn.IFNA(VLOOKUP($A17,Indywidualna[],COLUMNS($F16:J16)+7,0),0) -> 6 | K17: =_xlfn.IFNA(VLOOKUP($A17,Indywidualna[],COLUMNS($F16:K16)+7,0),0) -> 3 | L17: =_xlfn.IFNA(VLOOKUP($A17,Indywidualna[],COLUMNS($F16:L16)+7,0),0) -> 792 | M17: =_xlfn.IFNA(VLOOKUP($A17,Indywidualna[],COLUMNS($F16:M16)+7,0),0) -> 9 | N17: =_xlfn.IFNA(VLOOKUP($A17,Indywidualna[],COLUMNS($F16:N16)+7,0),0) -> 3
A18: 23 | B18: =_xlfn.IFNA(VLOOKUP(A18,Indywidualna[],2,0),0) -> Szczypior Stefan | C18: =F18+I18+L18 -> 1197 | D18: =G18+J18+M18 -> 13 | E18: =H18+K18+N18 -> 4 | F18: =_xlfn.IFNA(VLOOKUP($A18,Indywidualna[],COLUMNS($F17:F17)+7,0),0) -> 22 | G18: =_xlfn.IFNA(VLOOKUP($A18,Indywidualna[],COLUMNS($F17:G17)+7,0),0) -> 2 | H18: =_xlfn.IFNA(VLOOKUP($A18,Indywidualna[],COLUMNS($F17:H17)+7,0),0) -> 2 | I18: =_xlfn.IFNA(VLOOKUP($A18,Indywidualna[],COLUMNS($F17:I17)+7,0),0) -> 539 | J18: =_xlfn.IFNA(VLOOKUP($A18,Indywidualna[],COLUMNS($F17:J17)+7,0),0) -> 6 | K18: =_xlfn.IFNA(VLOOKUP($A18,Indywidualna[],COLUMNS($F17:K17)+7,0),0) -> 1 | L18: =_xlfn.IFNA(VLOOKUP($A18,Indywidualna[],COLUMNS($F17:L17)+7,0),0) -> 636 | M18: =_xlfn.IFNA(VLOOKUP($A18,Indywidualna[],COLUMNS($F17:M17)+7,0),0) -> 5 | N18: =_xlfn.IFNA(VLOOKUP($A18,Indywidualna[],COLUMNS($F17:N17)+7,0),0) -> 1
A19: 24 | B19: =_xlfn.IFNA(VLOOKUP(A19,Indywidualna[],2,0),0) -> Muża Jan | C19: =F19+I19+L19 -> 1933 | D19: =G19+J19+M19 -> 17 | E19: =H19+K19+N19 -> 4 | F19: =_xlfn.IFNA(VLOOKUP($A19,Indywidualna[],COLUMNS($F18:F18)+7,0),0) -> 904 | G19: =_xlfn.IFNA(VLOOKUP($A19,Indywidualna[],COLUMNS($F18:G18)+7,0),0) -> 8 | H19: =_xlfn.IFNA(VLOOKUP($A19,Indywidualna[],COLUMNS($F18:H18)+7,0),0) -> 1 | I19: =_xlfn.IFNA(VLOOKUP($A19,Indywidualna[],COLUMNS($F18:I18)+7,0),0) -> 553 | J19: =_xlfn.IFNA(VLOOKUP($A19,Indywidualna[],COLUMNS($F18:J18)+7,0),0) -> 4 | K19: =_xlfn.IFNA(VLOOKUP($A19,Indywidualna[],COLUMNS($F18:K18)+7,0),0) -> 1 | L19: =_xlfn.IFNA(VLOOKUP($A19,Indywidualna[],COLUMNS($F18:L18)+7,0),0) -> 476 | M19: =_xlfn.IFNA(VLOOKUP($A19,Indywidualna[],COLUMNS($F18:M18)+7,0),0) -> 5 | N19: =_xlfn.IFNA(VLOOKUP($A19,Indywidualna[],COLUMNS($F18:N18)+7,0),0) -> 2
B20: =_xlfn.IFNA(VLOOKUP(A20,Indywidualna[],2,0),0) -> 0 | C20: =F20+I20+L20 -> 0 | D20: =G20+J20+M20 -> 0 | E20: =H20+K20+N20 -> 0 | F20: =_xlfn.IFNA(VLOOKUP($A20,Indywidualna[],COLUMNS($F19:F19)+7,0),0) -> 0 | G20: =_xlfn.IFNA(VLOOKUP($A20,Indywidualna[],COLUMNS($F19:G19)+7,0),0) -> 0 | H20: =_xlfn.IFNA(VLOOKUP($A20,Indywidualna[],COLUMNS($F19:H19)+7,0),0) -> 0 | I20: =_xlfn.IFNA(VLOOKUP($A20,Indywidualna[],COLUMNS($F19:I19)+7,0),0) -> 0 | J20: =_xlfn.IFNA(VLOOKUP($A20,Indywidualna[],COLUMNS($F19:J19)+7,0),0) -> 0 | K20: =_xlfn.IFNA(VLOOKUP($A20,Indywidualna[],COLUMNS($F19:K19)+7,0),0) -> 0 | L20: =_xlfn.IFNA(VLOOKUP($A20,Indywidualna[],COLUMNS($F19:L19)+7,0),0) -> 0 | M20: =_xlfn.IFNA(VLOOKUP($A20,Indywidualna[],COLUMNS($F19:M19)+7,0),0) -> 0 | N20: =_xlfn.IFNA(VLOOKUP($A20,Indywidualna[],COLUMNS($F19:N19)+7,0),0) -> 0
A21: Podpis Kapitana | C21: =SUM(C16:C20) -> 6853 | D21: =SUM(D16:D20) -> 73 | E21: =SUM(E16:E20) -> 20 | F21: =SUM(F16:F20) -> 2085 | G21: =SUM(G16:G20) -> 23 | H21: =SUM(H16:H20) -> 5 | I21: =SUM(I16:I20) -> 2282 | J21: =SUM(J16:J20) -> 24 | K21: =SUM(K16:K20) -> 7 | L21: =SUM(L16:L20) -> 2486 | M21: =SUM(M16:M20) -> 26 | N21: =SUM(N16:N20) -> 8
A23: Drużyna | C23: RAZEM | F23: I SERIA | I23: II SERIA | L23: III SERIA
A24: KS KRAJNA Złotów II | C24: m.p | D24: w | E24: p | F24: m.p | G24: w | H24: p | I24: m.p | J24: w | K24: p | L24: m.p | M24: w | N24: p
A25: 13 | B25: =_xlfn.IFNA(VLOOKUP(A25,Indywidualna[],2,0),0) -> Kowalski Konrad | C25: =F25+I25+L25 -> 1318 | D25: =G25+J25+M25 -> 22 | E25: =H25+K25+N25 -> 9 | F25: =_xlfn.IFNA(VLOOKUP($A25,Indywidualna[],COLUMNS($F24:F24)+7,0),0) -> 774 | G25: =_xlfn.IFNA(VLOOKUP($A25,Indywidualna[],COLUMNS($F24:G24)+7,0),0) -> 9 | H25: =_xlfn.IFNA(VLOOKUP($A25,Indywidualna[],COLUMNS($F24:H24)+7,0),0) -> 1 | I25: =_xlfn.IFNA(VLOOKUP($A25,Indywidualna[],COLUMNS($F24:I24)+7,0),0) -> 164 | J25: =_xlfn.IFNA(VLOOKUP($A25,Indywidualna[],COLUMNS($F24:J24)+7,0),0) -> 6 | K25: =_xlfn.IFNA(VLOOKUP($A25,Indywidualna[],COLUMNS($F24:K24)+7,0),0) -> 4 | L25: =_xlfn.IFNA(VLOOKUP($A25,Indywidualna[],COLUMNS($F24:L24)+7,0),0) -> 380 | M25: =_xlfn.IFNA(VLOOKUP($A25,Indywidualna[],COLUMNS($F24:M24)+7,0),0) -> 7 | N25: =_xlfn.IFNA(VLOOKUP($A25,Indywidualna[],COLUMNS($F24:N24)+7,0),0) -> 4
A26: 14 | B26: =_xlfn.IFNA(VLOOKUP(A26,Indywidualna[],2,0),0) -> Bełka Jan | C26: =F26+I26+L26 -> 1761 | D26: =G26+J26+M26 -> 22 | E26: =H26+K26+N26 -> 8 | F26: =_xlfn.IFNA(VLOOKUP($A26,Indywidualna[],COLUMNS($F25:F25)+7,0),0) -> 1130 | G26: =_xlfn.IFNA(VLOOKUP($A26,Indywidualna[],COLUMNS($F25:G25)+7,0),0) -> 12 | H26: =_xlfn.IFNA(VLOOKUP($A26,Indywidualna[],COLUMNS($F25:H25)+7,0),0) -> 2 | I26: =_xlfn.IFNA(VLOOKUP($A26,Indywidualna[],COLUMNS($F25:I25)+7,0),0) -> 254 | J26: =_xlfn.IFNA(VLOOKUP($A26,Indywidualna[],COLUMNS($F25:J25)+7,0),0) -> 7 | K26: =_xlfn.IFNA(VLOOKUP($A26,Indywidualna[],COLUMNS($F25:K25)+7,0),0) -> 4 | L26: =_xlfn.IFNA(VLOOKUP($A26,Indywidualna[],COLUMNS($F25:L25)+7,0),0) -> 377 | M26: =_xlfn.IFNA(VLOOKUP($A26,Indywidualna[],COLUMNS($F25:M25)+7,0),0) -> 3 | N26: =_xlfn.IFNA(VLOOKUP($A26,Indywidualna[],COLUMNS($F25:N25)+7,0),0) -> 2
A27: 15 | B27: =_xlfn.IFNA(VLOOKUP(A27,Indywidualna[],2,0),0) -> Piasecki Jan | C27: =F27+I27+L27 -> 2438 | D27: =G27+J27+M27 -> 26 | E27: =H27+K27+N27 -> 5 | F27: =_xlfn.IFNA(VLOOKUP($A27,Indywidualna[],COLUMNS($F26:F26)+7,0),0) -> 848 | G27: =_xlfn.IFNA(VLOOKUP($A27,Indywidualna[],COLUMNS($F26:G26)+7,0),0) -> 8 | H27: =_xlfn.IFNA(VLOOKUP($A27,Indywidualna[],COLUMNS($F26:H26)+7,0),0) -> 1 | I27: =_xlfn.IFNA(VLOOKUP($A27,Indywidualna[],COLUMNS($F26:I26)+7,0),0) -> 626 | J27: =_xlfn.IFNA(VLOOKUP($A27,Indywidualna[],COLUMNS($F26:J26)+7,0),0) -> 7 | K27: =_xlfn.IFNA(VLOOKUP($A27,Indywidualna[],COLUMNS($F26:K26)+7,0),0) -> 2 | L27: =_xlfn.IFNA(VLOOKUP($A27,Indywidualna[],COLUMNS($F26:L26)+7,0),0) -> 964 | M27: =_xlfn.IFNA(VLOOKUP($A27,Indywidualna[],COLUMNS($F26:M26)+7,0),0) -> 11 | N27: =_xlfn.IFNA(VLOOKUP($A27,Indywidualna[],COLUMNS($F26:N26)+7,0),0) -> 2
A28: 16 | B28: =_xlfn.IFNA(VLOOKUP(A28,Indywidualna[],2,0),0) -> Kazimierowski Stanisław | C28: =F28+I28+L28 -> 1026 | D28: =G28+J28+M28 -> 15 | E28: =H28+K28+N28 -> 7 | F28: =_xlfn.IFNA(VLOOKUP($A28,Indywidualna[],COLUMNS($F27:F27)+7,0),0) -> 91 | G28: =_xlfn.IFNA(VLOOKUP($A28,Indywidualna[],COLUMNS($F27:G27)+7,0),0) -> 5 | H28: =_xlfn.IFNA(VLOOKUP($A28,Indywidualna[],COLUMNS($F27:H27)+7,0),0) -> 5 | I28: =_xlfn.IFNA(VLOOKUP($A28,Indywidualna[],COLUMNS($F27:I27)+7,0),0) -> 535 | J28: =_xlfn.IFNA(VLOOKUP($A28,Indywidualna[],COLUMNS($F27:J27)+7,0),0) -> 5 | K28: =_xlfn.IFNA(VLOOKUP($A28,Indywidualna[],COLUMNS($F27:K27)+7,0),0) -> 1 | L28: =_xlfn.IFNA(VLOOKUP($A28,Indywidualna[],COLUMNS($F27:L27)+7,0),0) -> 400 | M28: =_xlfn.IFNA(VLOOKUP($A28,Indywidualna[],COLUMNS($F27:M27)+7,0),0) -> 5 | N28: =_xlfn.IFNA(VLOOKUP($A28,Indywidualna[],COLUMNS($F27:N27)+7,0),0) -> 1
B29: =_xlfn.IFNA(VLOOKUP(A29,Indywidualna[],2,0),0) -> 0 | C29: =F29+I29+L29 -> 0 | D29: =G29+J29+M29 -> 0 | E29: =H29+K29+N29 -> 0 | F29: =_xlfn.IFNA(VLOOKUP($A29,Indywidualna[],COLUMNS($F28:F28)+7,0),0) -> 0 | G29: =_xlfn.IFNA(VLOOKUP($A29,Indywidualna[],COLUMNS($F28:G28)+7,0),0) -> 0 | H29: =_xlfn.IFNA(VLOOKUP($A29,Indywidualna[],COLUMNS($F28:H28)+7,0),0) -> 0 | I29: =_xlfn.IFNA(VLOOKUP($A29,Indywidualna[],COLUMNS($F28:I28)+7,0),0) -> 0 | J29: =_xlfn.IFNA(VLOOKUP($A29,Indywidualna[],COLUMNS($F28:J28)+7,0),0) -> 0 | K29: =_xlfn.IFNA(VLOOKUP($A29,Indywidualna[],COLUMNS($F28:K28)+7,0),0) -> 0 | L29: =_xlfn.IFNA(VLOOKUP($A29,Indywidualna[],COLUMNS($F28:L28)+7,0),0) -> 0 | M29: =_xlfn.IFNA(VLOOKUP($A29,Indywidualna[],COLUMNS($F28:M28)+7,0),0) -> 0 | N29: =_xlfn.IFNA(VLOOKUP($A29,Indywidualna[],COLUMNS($F28:N28)+7,0),0) -> 0
A30: Podpis Kapitana | C30: =SUM(C25:C29) -> 6543 | D30: =SUM(D25:D29) -> 85 | E30: =SUM(E25:E29) -> 29 | F30: =SUM(F25:F29) -> 2843 | G30: =SUM(G25:G29) -> 34 | H30: =SUM(H25:H29) -> 9 | I30: =SUM(I25:I29) -> 1579 | J30: =SUM(J25:J29) -> 25 | K30: =SUM(K25:K29) -> 11 | L30: =SUM(L25:L29) -> 2121 | M30: =SUM(M25:M29) -> 26 | N30: =SUM(N25:N29) -> 9
A32: Drużyna | C32: RAZEM | F32: I SERIA | I32: II SERIA | L32: III SERIA
A33: S.K. FAMILY Dziemiany | C33: m.p | D33: w | E33: p | F33: m.p | G33: w | H33: p | I33: m.p | J33: w | K33: p | L33: m.p | M33: w | N33: p
A34: 25 | B34: =_xlfn.IFNA(VLOOKUP(A34,Indywidualna[],2,0),0) -> Mikołajczyk Paweł | C34: =F34+I34+L34 -> 1921 | D34: =G34+J34+M34 -> 22 | E34: =H34+K34+N34 -> 8 | F34: =_xlfn.IFNA(VLOOKUP($A34,Indywidualna[],COLUMNS($F33:F33)+7,0),0) -> 563 | G34: =_xlfn.IFNA(VLOOKUP($A34,Indywidualna[],COLUMNS($F33:G33)+7,0),0) -> 7 | H34: =_xlfn.IFNA(VLOOKUP($A34,Indywidualna[],COLUMNS($F33:H33)+7,0),0) -> 2 | I34: =_xlfn.IFNA(VLOOKUP($A34,Indywidualna[],COLUMNS($F33:I33)+7,0),0) -> 730 | J34: =_xlfn.IFNA(VLOOKUP($A34,Indywidualna[],COLUMNS($F33:J33)+7,0),0) -> 7 | K34: =_xlfn.IFNA(VLOOKUP($A34,Indywidualna[],COLUMNS($F33:K33)+7,0),0) -> 3 | L34: =_xlfn.IFNA(VLOOKUP($A34,Indywidualna[],COLUMNS($F33:L33)+7,0),0) -> 628 | M34: =_xlfn.IFNA(VLOOKUP($A34,Indywidualna[],COLUMNS($F33:M33)+7,0),0) -> 8 | N34: =_xlfn.IFNA(VLOOKUP($A34,Indywidualna[],COLUMNS($F33:N33)+7,0),0) -> 3
A35: 26 | B35: =_xlfn.IFNA(VLOOKUP(A35,Indywidualna[],2,0),0) -> Mikołajczyk Rafał | C35: =F35+I35+L35 -> 2293 | D35: =G35+J35+M35 -> 28 | E35: =H35+K35+N35 -> 5 | F35: =_xlfn.IFNA(VLOOKUP($A35,Indywidualna[],COLUMNS($F34:F34)+7,0),0) -> 590 | G35: =_xlfn.IFNA(VLOOKUP($A35,Indywidualna[],COLUMNS($F34:G34)+7,0),0) -> 7 | H35: =_xlfn.IFNA(VLOOKUP($A35,Indywidualna[],COLUMNS($F34:H34)+7,0),0) -> 1 | I35: =_xlfn.IFNA(VLOOKUP($A35,Indywidualna[],COLUMNS($F34:I34)+7,0),0) -> 995 | J35: =_xlfn.IFNA(VLOOKUP($A35,Indywidualna[],COLUMNS($F34:J34)+7,0),0) -> 10 | K35: =_xlfn.IFNA(VLOOKUP($A35,Indywidualna[],COLUMNS($F34:K34)+7,0),0) -> 1 | L35: =_xlfn.IFNA(VLOOKUP($A35,Indywidualna[],COLUMNS($F34:L34)+7,0),0) -> 708 | M35: =_xlfn.IFNA(VLOOKUP($A35,Indywidualna[],COLUMNS($F34:M34)+7,0),0) -> 11 | N35: =_xlfn.IFNA(VLOOKUP($A35,Indywidualna[],COLUMNS($F34:N34)+7,0),0) -> 3
A36: 27 | B36: =_xlfn.IFNA(VLOOKUP(A36,Indywidualna[],2,0),0) -> Mikołajczyk Tomasz | C36: =F36+I36+L36 -> 2326 | D36: =G36+J36+M36 -> 25 | E36: =H36+K36+N36 -> 5 | F36: =_xlfn.IFNA(VLOOKUP($A36,Indywidualna[],COLUMNS($F35:F35)+7,0),0) -> 1322 | G36: =_xlfn.IFNA(VLOOKUP($A36,Indywidualna[],COLUMNS($F35:G35)+7,0),0) -> 11 | H36: =_xlfn.IFNA(VLOOKUP($A36,Indywidualna[],COLUMNS($F35:H35)+7,0),0) -> 0 | I36: =_xlfn.IFNA(VLOOKUP($A36,Indywidualna[],COLUMNS($F35:I35)+7,0),0) -> 395 | J36: =_xlfn.IFNA(VLOOKUP($A36,Indywidualna[],COLUMNS($F35:J35)+7,0),0) -> 5 | K36: =_xlfn.IFNA(VLOOKUP($A36,Indywidualna[],COLUMNS($F35:K35)+7,0),0) -> 1 | L36: =_xlfn.IFNA(VLOOKUP($A36,Indywidualna[],COLUMNS($F35:L35)+7,0),0) -> 609 | M36: =_xlfn.IFNA(VLOOKUP($A36,Indywidualna[],COLUMNS($F35:M35)+7,0),0) -> 9 | N36: =_xlfn.IFNA(VLOOKUP($A36,Indywidualna[],COLUMNS($F35:N35)+7,0),0) -> 4
A37: 28 | B37: =_xlfn.IFNA(VLOOKUP(A37,Indywidualna[],2,0),0) -> Kujawski Łukasz | C37: =F37+I37+L37 -> 1349 | D37: =G37+J37+M37 -> 19 | E37: =H37+K37+N37 -> 7 | F37: =_xlfn.IFNA(VLOOKUP($A37,Indywidualna[],COLUMNS($F36:F36)+7,0),0) -> 70 | G37: =_xlfn.IFNA(VLOOKUP($A37,Indywidualna[],COLUMNS($F36:G36)+7,0),0) -> 4 | H37: =_xlfn.IFNA(VLOOKUP($A37,Indywidualna[],COLUMNS($F36:H36)+7,0),0) -> 4 | I37: =_xlfn.IFNA(VLOOKUP($A37,Indywidualna[],COLUMNS($F36:I36)+7,0),0) -> 644 | J37: =_xlfn.IFNA(VLOOKUP($A37,Indywidualna[],COLUMNS($F36:J36)+7,0),0) -> 7 | K37: =_xlfn.IFNA(VLOOKUP($A37,Indywidualna[],COLUMNS($F36:K36)+7,0),0) -> 0 | L37: =_xlfn.IFNA(VLOOKUP($A37,Indywidualna[],COLUMNS($F36:L36)+7,0),0) -> 635 | M37: =_xlfn.IFNA(VLOOKUP($A37,Indywidualna[],COLUMNS($F36:M36)+7,0),0) -> 8 | N37: =_xlfn.IFNA(VLOOKUP($A37,Indywidualna[],COLUMNS($F36:N36)+7,0),0) -> 3
B38: =_xlfn.IFNA(VLOOKUP(A38,Indywidualna[],2,0),0) -> 0 | C38: =F38+I38+L38 -> 0 | D38: =G38+J38+M38 -> 0 | E38: =H38+K38+N38 -> 0 | F38: =_xlfn.IFNA(VLOOKUP($A38,Indywidualna[],COLUMNS($F37:F37)+7,0),0) -> 0 | G38: =_xlfn.IFNA(VLOOKUP($A38,Indywidualna[],COLUMNS($F37:G37)+7,0),0) -> 0 | H38: =_xlfn.IFNA(VLOOKUP($A38,Indywidualna[],COLUMNS($F37:H37)+7,0),0) -> 0 | I38: =_xlfn.IFNA(VLOOKUP($A38,Indywidualna[],COLUMNS($F37:I37)+7,0),0) -> 0 | J38: =_xlfn.IFNA(VLOOKUP($A38,Indywidualna[],COLUMNS($F37:J37)+7,0),0) -> 0 | K38: =_xlfn.IFNA(VLOOKUP($A38,Indywidualna[],COLUMNS($F37:K37)+7,0),0) -> 0 | L38: =_xlfn.IFNA(VLOOKUP($A38,Indywidualna[],COLUMNS($F37:L37)+7,0),0) -> 0 | M38: =_xlfn.IFNA(VLOOKUP($A38,Indywidualna[],COLUMNS($F37:M37)+7,0),0) -> 0 | N38: =_xlfn.IFNA(VLOOKUP($A38,Indywidualna[],COLUMNS($F37:N37)+7,0),0) -> 0
A39: Podpis Kapitana | C39: =SUM(C34:C38) -> 7889 | D39: =SUM(D34:D38) -> 94 | E39: =SUM(E34:E38) -> 25 | F39: =SUM(F34:F38) -> 2545 | G39: =SUM(G34:G38) -> 29 | H39: =SUM(H34:H38) -> 7 | I39: =SUM(I34:I38) -> 2764 | J39: =SUM(J34:J38) -> 29 | K39: =SUM(K34:K38) -> 5 | L39: =SUM(L34:L38) -> 2580 | M39: =SUM(M34:M38) -> 36 | N39: =SUM(N34:N38) -> 13
A41: Drużyna | C41: RAZEM | F41: I SERIA | I41: II SERIA | L41: III SERIA
A42: FALA Świekatowo | C42: m.p | D42: w | E42: p | F42: m.p | G42: w | H42: p | I42: m.p | J42: w | K42: p | L42: m.p | M42: w | N42: p
A43: 1 | B43: =_xlfn.IFNA(VLOOKUP(A43,Indywidualna[],2,0),0) -> Szneidrowski Marek | C43: =F43+I43+L43 -> 2104 | D43: =G43+J43+M43 -> 17 | E43: =H43+K43+N43 -> 0 | F43: =_xlfn.IFNA(VLOOKUP($A43,Indywidualna[],COLUMNS($F42:F42)+7,0),0) -> 449 | G43: =_xlfn.IFNA(VLOOKUP($A43,Indywidualna[],COLUMNS($F42:G42)+7,0),0) -> 3 | H43: =_xlfn.IFNA(VLOOKUP($A43,Indywidualna[],COLUMNS($F42:H42)+7,0),0) -> 0 | I43: =_xlfn.IFNA(VLOOKUP($A43,Indywidualna[],COLUMNS($F42:I42)+7,0),0) -> 857 | J43: =_xlfn.IFNA(VLOOKUP($A43,Indywidualna[],COLUMNS($F42:J42)+7,0),0) -> 7 | K43: =_xlfn.IFNA(VLOOKUP($A43,Indywidualna[],COLUMNS($F42:K42)+7,0),0) -> 0 | L43: =_xlfn.IFNA(VLOOKUP($A43,Indywidualna[],COLUMNS($F42:L42)+7,0),0) -> 798 | M43: =_xlfn.IFNA(VLOOKUP($A43,Indywidualna[],COLUMNS($F42:M42)+7,0),0) -> 7 | N43: =_xlfn.IFNA(VLOOKUP($A43,Indywidualna[],COLUMNS($F42:N42)+7,0),0) -> 0
A44: 2 | B44: =_xlfn.IFNA(VLOOKUP(A44,Indywidualna[],2,0),0) -> Glama Stanisław | C44: =F44+I44+L44 -> 2288 | D44: =G44+J44+M44 -> 26 | E44: =H44+K44+N44 -> 5 | F44: =_xlfn.IFNA(VLOOKUP($A44,Indywidualna[],COLUMNS($F43:F43)+7,0),0) -> 890 | G44: =_xlfn.IFNA(VLOOKUP($A44,Indywidualna[],COLUMNS($F43:G43)+7,0),0) -> 7 | H44: =_xlfn.IFNA(VLOOKUP($A44,Indywidualna[],COLUMNS($F43:H43)+7,0),0) -> 0 | I44: =_xlfn.IFNA(VLOOKUP($A44,Indywidualna[],COLUMNS($F43:I43)+7,0),0) -> 941 | J44: =_xlfn.IFNA(VLOOKUP($A44,Indywidualna[],COLUMNS($F43:J43)+7,0),0) -> 12 | K44: =_xlfn.IFNA(VLOOKUP($A44,Indywidualna[],COLUMNS($F43:K43)+7,0),0) -> 2 | L44: =_xlfn.IFNA(VLOOKUP($A44,Indywidualna[],COLUMNS($F43:L43)+7,0),0) -> 457 | M44: =_xlfn.IFNA(VLOOKUP($A44,Indywidualna[],COLUMNS($F43:M43)+7,0),0) -> 7 | N44: =_xlfn.IFNA(VLOOKUP($A44,Indywidualna[],COLUMNS($F43:N43)+7,0),0) -> 3
A45: 3 | B45: =_xlfn.IFNA(VLOOKUP(A45,Indywidualna[],2,0),0) -> Moch Ireneusz | C45: =F45+I45+L45 -> 2551 | D45: =G45+J45+M45 -> 25 | E45: =H45+K45+N45 -> 1 | F45: =_xlfn.IFNA(VLOOKUP($A45,Indywidualna[],COLUMNS($F44:F44)+7,0),0) -> 1102 | G45: =_xlfn.IFNA(VLOOKUP($A45,Indywidualna[],COLUMNS($F44:G44)+7,0),0) -> 10 | H45: =_xlfn.IFNA(VLOOKUP($A45,Indywidualna[],COLUMNS($F44:H44)+7,0),0) -> 0 | I45: =_xlfn.IFNA(VLOOKUP($A45,Indywidualna[],COLUMNS($F44:I44)+7,0),0) -> 1069 | J45: =_xlfn.IFNA(VLOOKUP($A45,Indywidualna[],COLUMNS($F44:J44)+7,0),0) -> 10 | K45: =_xlfn.IFNA(VLOOKUP($A45,Indywidualna[],COLUMNS($F44:K44)+7,0),0) -> 0 | L45: =_xlfn.IFNA(VLOOKUP($A45,Indywidualna[],COLUMNS($F44:L44)+7,0),0) -> 380 | M45: =_xlfn.IFNA(VLOOKUP($A45,Indywidualna[],COLUMNS($F44:M44)+7,0),0) -> 5 | N45: =_xlfn.IFNA(VLOOKUP($A45,Indywidualna[],COLUMNS($F44:N44)+7,0),0) -> 1
A46: 4 | B46: =_xlfn.IFNA(VLOOKUP(A46,Indywidualna[],2,0),0) -> Szatkowski Mirosław | C46: =F46+I46+L46 -> 2120 | D46: =G46+J46+M46 -> 29 | E46: =H46+K46+N46 -> 8 | F46: =_xlfn.IFNA(VLOOKUP($A46,Indywidualna[],COLUMNS($F45:F45)+7,0),0) -> 890 | G46: =_xlfn.IFNA(VLOOKUP($A46,Indywidualna[],COLUMNS($F45:G45)+7,0),0) -> 9 | H46: =_xlfn.IFNA(VLOOKUP($A46,Indywidualna[],COLUMNS($F45:H45)+7,0),0) -> 1 | I46: =_xlfn.IFNA(VLOOKUP($A46,Indywidualna[],COLUMNS($F45:I45)+7,0),0) -> 530 | J46: =_xlfn.IFNA(VLOOKUP($A46,Indywidualna[],COLUMNS($F45:J45)+7,0),0) -> 10 | K46: =_xlfn.IFNA(VLOOKUP($A46,Indywidualna[],COLUMNS($F45:K45)+7,0),0) -> 4 | L46: =_xlfn.IFNA(VLOOKUP($A46,Indywidualna[],COLUMNS($F45:L45)+7,0),0) -> 700 | M46: =_xlfn.IFNA(VLOOKUP($A46,Indywidualna[],COLUMNS($F45:M45)+7,0),0) -> 10 | N46: =_xlfn.IFNA(VLOOKUP($A46,Indywidualna[],COLUMNS($F45:N45)+7,0),0) -> 3
B47: =_xlfn.IFNA(VLOOKUP(A47,Indywidualna[],2,0),0) -> 0 | C47: =F47+I47+L47 -> 0 | D47: =G47+J47+M47 -> 0 | E47: =H47+K47+N47 -> 0 | F47: =_xlfn.IFNA(VLOOKUP($A47,Indywidualna[],COLUMNS($F46:F46)+7,0),0) -> 0 | G47: =_xlfn.IFNA(VLOOKUP($A47,Indywidualna[],COLUMNS($F46:G46)+7,0),0) -> 0 | H47: =_xlfn.IFNA(VLOOKUP($A47,Indywidualna[],COLUMNS($F46:H46)+7,0),0) -> 0 | I47: =_xlfn.IFNA(VLOOKUP($A47,Indywidualna[],COLUMNS($F46:I46)+7,0),0) -> 0 | J47: =_xlfn.IFNA(VLOOKUP($A47,Indywidualna[],COLUMNS($F46:J46)+7,0),0) -> 0 | K47: =_xlfn.IFNA(VLOOKUP($A47,Indywidualna[],COLUMNS($F46:K46)+7,0),0) -> 0 | L47: =_xlfn.IFNA(VLOOKUP($A47,Indywidualna[],COLUMNS($F46:L46)+7,0),0) -> 0 | M47: =_xlfn.IFNA(VLOOKUP($A47,Indywidualna[],COLUMNS($F46:M46)+7,0),0) -> 0 | N47: =_xlfn.IFNA(VLOOKUP($A47,Indywidualna[],COLUMNS($F46:N46)+7,0),0) -> 0
A48: Podpis Kapitana | C48: =SUM(C43:C47) -> 9063 | D48: =SUM(D43:D47) -> 97 | E48: =SUM(E43:E47) -> 14 | F48: =SUM(F43:F47) -> 3331 | G48: =SUM(G43:G47) -> 29 | H48: =SUM(H43:H47) -> 1 | I48: =SUM(I43:I47) -> 3397 | J48: =SUM(J43:J47) -> 39 | K48: =SUM(K43:K47) -> 6 | L48: =SUM(L43:L47) -> 2335 | M48: =SUM(M43:M47) -> 29 | N48: =SUM(N43:N47) -> 7
A50: Drużyna | C50: RAZEM | F50: I SERIA | I50: II SERIA | L50: III SERIA
A51: GOKSiR Liniewo | C51: m.p | D51: w | E51: p | F51: m.p | G51: w | H51: p | I51: m.p | J51: w | K51: p | L51: m.p | M51: w | N51: p
A52: 5 | B52: =_xlfn.IFNA(VLOOKUP(A52,Indywidualna[],2,0),0) -> Narloch Stanisław | C52: =F52+I52+L52 -> 2104 | D52: =G52+J52+M52 -> 24 | E52: =H52+K52+N52 -> 6 | F52: =_xlfn.IFNA(VLOOKUP($A52,Indywidualna[],COLUMNS($F51:F51)+7,0),0) -> 558 | G52: =_xlfn.IFNA(VLOOKUP($A52,Indywidualna[],COLUMNS($F51:G51)+7,0),0) -> 6 | H52: =_xlfn.IFNA(VLOOKUP($A52,Indywidualna[],COLUMNS($F51:H51)+7,0),0) -> 1 | I52: =_xlfn.IFNA(VLOOKUP($A52,Indywidualna[],COLUMNS($F51:I51)+7,0),0) -> 1510 | J52: =_xlfn.IFNA(VLOOKUP($A52,Indywidualna[],COLUMNS($F51:J51)+7,0),0) -> 14 | K52: =_xlfn.IFNA(VLOOKUP($A52,Indywidualna[],COLUMNS($F51:K51)+7,0),0) -> 0 | L52: =_xlfn.IFNA(VLOOKUP($A52,Indywidualna[],COLUMNS($F51:L51)+7,0),0) -> 36 | M52: =_xlfn.IFNA(VLOOKUP($A52,Indywidualna[],COLUMNS($F51:M51)+7,0),0) -> 4 | N52: =_xlfn.IFNA(VLOOKUP($A52,Indywidualna[],COLUMNS($F51:N51)+7,0),0) -> 5
A53: 6 | B53: =_xlfn.IFNA(VLOOKUP(A53,Indywidualna[],2,0),0) -> Gostomski Zenon | C53: =F53+I53+L53 -> 1412 | D53: =G53+J53+M53 -> 10 | E53: =H53+K53+N53 -> 1 | F53: =_xlfn.IFNA(VLOOKUP($A53,Indywidualna[],COLUMNS($F52:F52)+7,0),0) -> 540 | G53: =_xlfn.IFNA(VLOOKUP($A53,Indywidualna[],COLUMNS($F52:G52)+7,0),0) -> 6 | H53: =_xlfn.IFNA(VLOOKUP($A53,Indywidualna[],COLUMNS($F52:H52)+7,0),0) -> 1 | I53: =_xlfn.IFNA(VLOOKUP($A53,Indywidualna[],COLUMNS($F52:I52)+7,0),0) -> 392 | J53: =_xlfn.IFNA(VLOOKUP($A53,Indywidualna[],COLUMNS($F52:J52)+7,0),0) -> 1 | K53: =_xlfn.IFNA(VLOOKUP($A53,Indywidualna[],COLUMNS($F52:K52)+7,0),0) -> 0 | L53: =_xlfn.IFNA(VLOOKUP($A53,Indywidualna[],COLUMNS($F52:L52)+7,0),0) -> 480 | M53: =_xlfn.IFNA(VLOOKUP($A53,Indywidualna[],COLUMNS($F52:M52)+7,0),0) -> 3 | N53: =_xlfn.IFNA(VLOOKUP($A53,Indywidualna[],COLUMNS($F52:N52)+7,0),0) -> 0
A54: 7 | B54: =_xlfn.IFNA(VLOOKUP(A54,Indywidualna[],2,0),0) -> Wirkus Józef | C54: =F54+I54+L54 -> 1494 | D54: =G54+J54+M54 -> 16 | E54: =H54+K54+N54 -> 4 | F54: =_xlfn.IFNA(VLOOKUP($A54,Indywidualna[],COLUMNS($F53:F53)+7,0),0) -> 353 | G54: =_xlfn.IFNA(VLOOKUP($A54,Indywidualna[],COLUMNS($F53:G53)+7,0),0) -> 6 | H54: =_xlfn.IFNA(VLOOKUP($A54,Indywidualna[],COLUMNS($F53:H53)+7,0),0) -> 2 | I54: =_xlfn.IFNA(VLOOKUP($A54,Indywidualna[],COLUMNS($F53:I53)+7,0),0) -> 293 | J54: =_xlfn.IFNA(VLOOKUP($A54,Indywidualna[],COLUMNS($F53:J53)+7,0),0) -> 3 | K54: =_xlfn.IFNA(VLOOKUP($A54,Indywidualna[],COLUMNS($F53:K53)+7,0),0) -> 2 | L54: =_xlfn.IFNA(VLOOKUP($A54,Indywidualna[],COLUMNS($F53:L53)+7,0),0) -> 848 | M54: =_xlfn.IFNA(VLOOKUP($A54,Indywidualna[],COLUMNS($F53:M53)+7,0),0) -> 7 | N54: =_xlfn.IFNA(VLOOKUP($A54,Indywidualna[],COLUMNS($F53:N53)+7,0),0) -> 0
A55: 8 | B55: =_xlfn.IFNA(VLOOKUP(A55,Indywidualna[],2,0),0) -> Wróbel Teresa | C55: =F55+I55+L55 -> 1913 | D55: =G55+J55+M55 -> 19 | E55: =H55+K55+N55 -> 5 | F55: =_xlfn.IFNA(VLOOKUP($A55,Indywidualna[],COLUMNS($F54:F54)+7,0),0) -> 759 | G55: =_xlfn.IFNA(VLOOKUP($A55,Indywidualna[],COLUMNS($F54:G54)+7,0),0) -> 7 | H55: =_xlfn.IFNA(VLOOKUP($A55,Indywidualna[],COLUMNS($F54:H54)+7,0),0) -> 1 | I55: =_xlfn.IFNA(VLOOKUP($A55,Indywidualna[],COLUMNS($F54:I54)+7,0),0) -> 720 | J55: =_xlfn.IFNA(VLOOKUP($A55,Indywidualna[],COLUMNS($F54:J54)+7,0),0) -> 8 | K55: =_xlfn.IFNA(VLOOKUP($A55,Indywidualna[],COLUMNS($F54:K54)+7,0),0) -> 3 | L55: =_xlfn.IFNA(VLOOKUP($A55,Indywidualna[],COLUMNS($F54:L54)+7,0),0) -> 434 | M55: =_xlfn.IFNA(VLOOKUP($A55,Indywidualna[],COLUMNS($F54:M54)+7,0),0) -> 4 | N55: =_xlfn.IFNA(VLOOKUP($A55,Indywidualna[],COLUMNS($F54:N54)+7,0),0) -> 1
B56: =_xlfn.IFNA(VLOOKUP(A56,Indywidualna[],2,0),0) -> 0 | C56: =F56+I56+L56 -> 0 | D56: =G56+J56+M56 -> 0 | E56: =H56+K56+N56 -> 0 | F56: =_xlfn.IFNA(VLOOKUP($A56,Indywidualna[],COLUMNS($F55:F55)+7,0),0) -> 0 | G56: =_xlfn.IFNA(VLOOKUP($A56,Indywidualna[],COLUMNS($F55:G55)+7,0),0) -> 0 | H56: =_xlfn.IFNA(VLOOKUP($A56,Indywidualna[],COLUMNS($F55:H55)+7,0),0) -> 0 | I56: =_xlfn.IFNA(VLOOKUP($A56,Indywidualna[],COLUMNS($F55:I55)+7,0),0) -> 0 | J56: =_xlfn.IFNA(VLOOKUP($A56,Indywidualna[],COLUMNS($F55:J55)+7,0),0) -> 0 | K56: =_xlfn.IFNA(VLOOKUP($A56,Indywidualna[],COLUMNS($F55:K55)+7,0),0) -> 0 | L56: =_xlfn.IFNA(VLOOKUP($A56,Indywidualna[],COLUMNS($F55:L55)+7,0),0) -> 0 | M56: =_xlfn.IFNA(VLOOKUP($A56,Indywidualna[],COLUMNS($F55:M55)+7,0),0) -> 0 | N56: =_xlfn.IFNA(VLOOKUP($A56,Indywidualna[],COLUMNS($F55:N55)+7,0),0) -> 0
A57: Podpis Kapitana | C57: =SUM(C52:C56) -> 6923 | D57: =SUM(D52:D56) -> 69 | E57: =SUM(E52:E56) -> 16 | F57: =SUM(F52:F56) -> 2210 | G57: =SUM(G52:G56) -> 25 | H57: =SUM(H52:H56) -> 5 | I57: =SUM(I52:I56) -> 2915 | J57: =SUM(J52:J56) -> 26 | K57: =SUM(K52:K56) -> 5 | L57: =SUM(L52:L56) -> 1798 | M57: =SUM(M52:M56) -> 18 | N57: =SUM(N52:N56) -> 6
A59: Drużyna | C59: RAZEM | F59: I SERIA | I59: II SERIA | L59: III SERIA
A60: KS KRAJNA Złotów | C60: m.p | D60: w | E60: p | F60: m.p | G60: w | H60: p | I60: m.p | J60: w | K60: p | L60: m.p | M60: w | N60: p
A61: 9 | B61: =_xlfn.IFNA(VLOOKUP(A61,Indywidualna[],2,0),0) -> Biniakiewicz Marian | C61: =F61+I61+L61 -> 1997 | D61: =G61+J61+M61 -> 23 | E61: =H61+K61+N61 -> 7 | F61: =_xlfn.IFNA(VLOOKUP($A61,Indywidualna[],COLUMNS($F60:F60)+7,0),0) -> 344 | G61: =_xlfn.IFNA(VLOOKUP($A61,Indywidualna[],COLUMNS($F60:G60)+7,0),0) -> 6 | H61: =_xlfn.IFNA(VLOOKUP($A61,Indywidualna[],COLUMNS($F60:H60)+7,0),0) -> 3 | I61: =_xlfn.IFNA(VLOOKUP($A61,Indywidualna[],COLUMNS($F60:I60)+7,0),0) -> 1436 | J61: =_xlfn.IFNA(VLOOKUP($A61,Indywidualna[],COLUMNS($F60:J60)+7,0),0) -> 14 | K61: =_xlfn.IFNA(VLOOKUP($A61,Indywidualna[],COLUMNS($F60:K60)+7,0),0) -> 1 | L61: =_xlfn.IFNA(VLOOKUP($A61,Indywidualna[],COLUMNS($F60:L60)+7,0),0) -> 217 | M61: =_xlfn.IFNA(VLOOKUP($A61,Indywidualna[],COLUMNS($F60:M60)+7,0),0) -> 3 | N61: =_xlfn.IFNA(VLOOKUP($A61,Indywidualna[],COLUMNS($F60:N60)+7,0),0) -> 3
A62: 10 | B62: =_xlfn.IFNA(VLOOKUP(A62,Indywidualna[],2,0),0) -> Siemaszko Henryk | C62: =F62+I62+L62 -> 3434 | D62: =G62+J62+M62 -> 33 | E62: =H62+K62+N62 -> 1 | F62: =_xlfn.IFNA(VLOOKUP($A62,Indywidualna[],COLUMNS($F61:F61)+7,0),0) -> 1229 | G62: =_xlfn.IFNA(VLOOKUP($A62,Indywidualna[],COLUMNS($F61:G61)+7,0),0) -> 13 | H62: =_xlfn.IFNA(VLOOKUP($A62,Indywidualna[],COLUMNS($F61:H61)+7,0),0) -> 1 | I62: =_xlfn.IFNA(VLOOKUP($A62,Indywidualna[],COLUMNS($F61:I61)+7,0),0) -> 1138 | J62: =_xlfn.IFNA(VLOOKUP($A62,Indywidualna[],COLUMNS($F61:J61)+7,0),0) -> 11 | K62: =_xlfn.IFNA(VLOOKUP($A62,Indywidualna[],COLUMNS($F61:K61)+7,0),0) -> 0 | L62: =_xlfn.IFNA(VLOOKUP($A62,Indywidualna[],COLUMNS($F61:L61)+7,0),0) -> 1067 | M62: =_xlfn.IFNA(VLOOKUP($A62,Indywidualna[],COLUMNS($F61:M61)+7,0),0) -> 9 | N62: =_xlfn.IFNA(VLOOKUP($A62,Indywidualna[],COLUMNS($F61:N61)+7,0),0) -> 0
A63: 11 | B63: =_xlfn.IFNA(VLOOKUP(A63,Indywidualna[],2,0),0) -> Szatkowski Leszek | C63: =F63+I63+L63 -> 2514 | D63: =G63+J63+M63 -> 29 | E63: =H63+K63+N63 -> 8 | F63: =_xlfn.IFNA(VLOOKUP($A63,Indywidualna[],COLUMNS($F62:F62)+7,0),0) -> 1279 | G63: =_xlfn.IFNA(VLOOKUP($A63,Indywidualna[],COLUMNS($F62:G62)+7,0),0) -> 13 | H63: =_xlfn.IFNA(VLOOKUP($A63,Indywidualna[],COLUMNS($F62:H62)+7,0),0) -> 1 | I63: =_xlfn.IFNA(VLOOKUP($A63,Indywidualna[],COLUMNS($F62:I62)+7,0),0) -> 60 | J63: =_xlfn.IFNA(VLOOKUP($A63,Indywidualna[],COLUMNS($F62:J62)+7,0),0) -> 5 | K63: =_xlfn.IFNA(VLOOKUP($A63,Indywidualna[],COLUMNS($F62:K62)+7,0),0) -> 5 | L63: =_xlfn.IFNA(VLOOKUP($A63,Indywidualna[],COLUMNS($F62:L62)+7,0),0) -> 1175 | M63: =_xlfn.IFNA(VLOOKUP($A63,Indywidualna[],COLUMNS($F62:M62)+7,0),0) -> 11 | N63: =_xlfn.IFNA(VLOOKUP($A63,Indywidualna[],COLUMNS($F62:N62)+7,0),0) -> 2
A64: 12 | B64: =_xlfn.IFNA(VLOOKUP(A64,Indywidualna[],2,0),0) -> Bianga Edward | C64: =F64+I64+L64 -> 1117 | D64: =G64+J64+M64 -> 16 | E64: =H64+K64+N64 -> 5 | F64: =_xlfn.IFNA(VLOOKUP($A64,Indywidualna[],COLUMNS($F63:F63)+7,0),0) -> 587 | G64: =_xlfn.IFNA(VLOOKUP($A64,Indywidualna[],COLUMNS($F63:G63)+7,0),0) -> 7 | H64: =_xlfn.IFNA(VLOOKUP($A64,Indywidualna[],COLUMNS($F63:H63)+7,0),0) -> 1 | I64: =_xlfn.IFNA(VLOOKUP($A64,Indywidualna[],COLUMNS($F63:I63)+7,0),0) -> 771 | J64: =_xlfn.IFNA(VLOOKUP($A64,Indywidualna[],COLUMNS($F63:J63)+7,0),0) -> 7 | K64: =_xlfn.IFNA(VLOOKUP($A64,Indywidualna[],COLUMNS($F63:K63)+7,0),0) -> 0 | L64: =_xlfn.IFNA(VLOOKUP($A64,Indywidualna[],COLUMNS($F63:L63)+7,0),0) -> -241 | M64: =_xlfn.IFNA(VLOOKUP($A64,Indywidualna[],COLUMNS($F63:M63)+7,0),0) -> 2 | N64: =_xlfn.IFNA(VLOOKUP($A64,Indywidualna[],COLUMNS($F63:N63)+7,0),0) -> 4
B65: =_xlfn.IFNA(VLOOKUP(A65,Indywidualna[],2,0),0) -> 0 | C65: =F65+I65+L65 -> 0 | D65: =G65+J65+M65 -> 0 | E65: =H65+K65+N65 -> 0 | F65: =_xlfn.IFNA(VLOOKUP($A65,Indywidualna[],COLUMNS($F64:F64)+7,0),0) -> 0 | G65: =_xlfn.IFNA(VLOOKUP($A65,Indywidualna[],COLUMNS($F64:G64)+7,0),0) -> 0 | H65: =_xlfn.IFNA(VLOOKUP($A65,Indywidualna[],COLUMNS($F64:H64)+7,0),0) -> 0 | I65: =_xlfn.IFNA(VLOOKUP($A65,Indywidualna[],COLUMNS($F64:I64)+7,0),0) -> 0 | J65: =_xlfn.IFNA(VLOOKUP($A65,Indywidualna[],COLUMNS($F64:J64)+7,0),0) -> 0 | K65: =_xlfn.IFNA(VLOOKUP($A65,Indywidualna[],COLUMNS($F64:K64)+7,0),0) -> 0 | L65: =_xlfn.IFNA(VLOOKUP($A65,Indywidualna[],COLUMNS($F64:L64)+7,0),0) -> 0 | M65: =_xlfn.IFNA(VLOOKUP($A65,Indywidualna[],COLUMNS($F64:M64)+7,0),0) -> 0 | N65: =_xlfn.IFNA(VLOOKUP($A65,Indywidualna[],COLUMNS($F64:N64)+7,0),0) -> 0
A66: Podpis Kapitana | C66: =SUM(C61:C65) -> 9062 | D66: =SUM(D61:D65) -> 101 | E66: =SUM(E61:E65) -> 21 | F66: =SUM(F61:F65) -> 3439 | G66: =SUM(G61:G65) -> 39 | H66: =SUM(H61:H65) -> 6 | I66: =SUM(I61:I65) -> 3405 | J66: =SUM(J61:J65) -> 37 | K66: =SUM(K61:K65) -> 6 | L66: =SUM(L61:L65) -> 2218 | M66: =SUM(M61:M65) -> 25 | N66: =SUM(N61:N65) -> 9
A68: Drużyna | C68: RAZEM | F68: I SERIA | I68: II SERIA | L68: III SERIA
A69: GOKSiR Lipusz | C69: m.p | D69: w | E69: p | F69: m.p | G69: w | H69: p | I69: m.p | J69: w | K69: p | L69: m.p | M69: w | N69: p
B70: =_xlfn.IFNA(VLOOKUP(A70,Indywidualna[],2,0),0) -> 0 | C70: =F70+I70+L70 -> 0 | D70: =G70+J70+M70 -> 0 | E70: =H70+K70+N70 -> 0 | F70: =_xlfn.IFNA(VLOOKUP($A70,Indywidualna[],COLUMNS($F69:F69)+7,0),0) -> 0 | G70: =_xlfn.IFNA(VLOOKUP($A70,Indywidualna[],COLUMNS($F69:G69)+7,0),0) -> 0 | H70: =_xlfn.IFNA(VLOOKUP($A70,Indywidualna[],COLUMNS($F69:H69)+7,0),0) -> 0 | I70: =_xlfn.IFNA(VLOOKUP($A70,Indywidualna[],COLUMNS($F69:I69)+7,0),0) -> 0 | J70: =_xlfn.IFNA(VLOOKUP($A70,Indywidualna[],COLUMNS($F69:J69)+7,0),0) -> 0 | K70: =_xlfn.IFNA(VLOOKUP($A70,Indywidualna[],COLUMNS($F69:K69)+7,0),0) -> 0 | L70: =_xlfn.IFNA(VLOOKUP($A70,Indywidualna[],COLUMNS($F69:L69)+7,0),0) -> 0 | M70: =_xlfn.IFNA(VLOOKUP($A70,Indywidualna[],COLUMNS($F69:M69)+7,0),0) -> 0 | N70: =_xlfn.IFNA(VLOOKUP($A70,Indywidualna[],COLUMNS($F69:N69)+7,0),0) -> 0
B71: =_xlfn.IFNA(VLOOKUP(A71,Indywidualna[],2,0),0) -> 0 | C71: =F71+I71+L71 -> 0 | D71: =G71+J71+M71 -> 0 | E71: =H71+K71+N71 -> 0 | F71: =_xlfn.IFNA(VLOOKUP($A71,Indywidualna[],COLUMNS($F70:F70)+7,0),0) -> 0 | G71: =_xlfn.IFNA(VLOOKUP($A71,Indywidualna[],COLUMNS($F70:G70)+7,0),0) -> 0 | H71: =_xlfn.IFNA(VLOOKUP($A71,Indywidualna[],COLUMNS($F70:H70)+7,0),0) -> 0 | I71: =_xlfn.IFNA(VLOOKUP($A71,Indywidualna[],COLUMNS($F70:I70)+7,0),0) -> 0 | J71: =_xlfn.IFNA(VLOOKUP($A71,Indywidualna[],COLUMNS($F70:J70)+7,0),0) -> 0 | K71: =_xlfn.IFNA(VLOOKUP($A71,Indywidualna[],COLUMNS($F70:K70)+7,0),0) -> 0 | L71: =_xlfn.IFNA(VLOOKUP($A71,Indywidualna[],COLUMNS($F70:L70)+7,0),0) -> 0 | M71: =_xlfn.IFNA(VLOOKUP($A71,Indywidualna[],COLUMNS($F70:M70)+7,0),0) -> 0 | N71: =_xlfn.IFNA(VLOOKUP($A71,Indywidualna[],COLUMNS($F70:N70)+7,0),0) -> 0
B72: =_xlfn.IFNA(VLOOKUP(A72,Indywidualna[],2,0),0) -> 0 | C72: =F72+I72+L72 -> 0 | D72: =G72+J72+M72 -> 0 | E72: =H72+K72+N72 -> 0 | F72: =_xlfn.IFNA(VLOOKUP($A72,Indywidualna[],COLUMNS($F71:F71)+7,0),0) -> 0 | G72: =_xlfn.IFNA(VLOOKUP($A72,Indywidualna[],COLUMNS($F71:G71)+7,0),0) -> 0 | H72: =_xlfn.IFNA(VLOOKUP($A72,Indywidualna[],COLUMNS($F71:H71)+7,0),0) -> 0 | I72: =_xlfn.IFNA(VLOOKUP($A72,Indywidualna[],COLUMNS($F71:I71)+7,0),0) -> 0 | J72: =_xlfn.IFNA(VLOOKUP($A72,Indywidualna[],COLUMNS($F71:J71)+7,0),0) -> 0 | K72: =_xlfn.IFNA(VLOOKUP($A72,Indywidualna[],COLUMNS($F71:K71)+7,0),0) -> 0 | L72: =_xlfn.IFNA(VLOOKUP($A72,Indywidualna[],COLUMNS($F71:L71)+7,0),0) -> 0 | M72: =_xlfn.IFNA(VLOOKUP($A72,Indywidualna[],COLUMNS($F71:M71)+7,0),0) -> 0 | N72: =_xlfn.IFNA(VLOOKUP($A72,Indywidualna[],COLUMNS($F71:N71)+7,0),0) -> 0
B73: =_xlfn.IFNA(VLOOKUP(A73,Indywidualna[],2,0),0) -> 0 | C73: =F73+I73+L73 -> 0 | D73: =G73+J73+M73 -> 0 | E73: =H73+K73+N73 -> 0 | F73: =_xlfn.IFNA(VLOOKUP($A73,Indywidualna[],COLUMNS($F72:F72)+7,0),0) -> 0 | G73: =_xlfn.IFNA(VLOOKUP($A73,Indywidualna[],COLUMNS($F72:G72)+7,0),0) -> 0 | H73: =_xlfn.IFNA(VLOOKUP($A73,Indywidualna[],COLUMNS($F72:H72)+7,0),0) -> 0 | I73: =_xlfn.IFNA(VLOOKUP($A73,Indywidualna[],COLUMNS($F72:I72)+7,0),0) -> 0 | J73: =_xlfn.IFNA(VLOOKUP($A73,Indywidualna[],COLUMNS($F72:J72)+7,0),0) -> 0 | K73: =_xlfn.IFNA(VLOOKUP($A73,Indywidualna[],COLUMNS($F72:K72)+7,0),0) -> 0 | L73: =_xlfn.IFNA(VLOOKUP($A73,Indywidualna[],COLUMNS($F72:L72)+7,0),0) -> 0 | M73: =_xlfn.IFNA(VLOOKUP($A73,Indywidualna[],COLUMNS($F72:M72)+7,0),0) -> 0 | N73: =_xlfn.IFNA(VLOOKUP($A73,Indywidualna[],COLUMNS($F72:N72)+7,0),0) -> 0
B74: =_xlfn.IFNA(VLOOKUP(A74,Indywidualna[],2,0),0) -> 0 | C74: =F74+I74+L74 -> 0 | D74: =G74+J74+M74 -> 0 | E74: =H74+K74+N74 -> 0 | F74: =_xlfn.IFNA(VLOOKUP($A74,Indywidualna[],COLUMNS($F73:F73)+7,0),0) -> 0 | G74: =_xlfn.IFNA(VLOOKUP($A74,Indywidualna[],COLUMNS($F73:G73)+7,0),0) -> 0 | H74: =_xlfn.IFNA(VLOOKUP($A74,Indywidualna[],COLUMNS($F73:H73)+7,0),0) -> 0 | I74: =_xlfn.IFNA(VLOOKUP($A74,Indywidualna[],COLUMNS($F73:I73)+7,0),0) -> 0 | J74: =_xlfn.IFNA(VLOOKUP($A74,Indywidualna[],COLUMNS($F73:J73)+7,0),0) -> 0 | K74: =_xlfn.IFNA(VLOOKUP($A74,Indywidualna[],COLUMNS($F73:K73)+7,0),0) -> 0 | L74: =_xlfn.IFNA(VLOOKUP($A74,Indywidualna[],COLUMNS($F73:L73)+7,0),0) -> 0 | M74: =_xlfn.IFNA(VLOOKUP($A74,Indywidualna[],COLUMNS($F73:M73)+7,0),0) -> 0 | N74: =_xlfn.IFNA(VLOOKUP($A74,Indywidualna[],COLUMNS($F73:N73)+7,0),0) -> 0
A75: Podpis Kapitana | C75: =SUM(C70:C74) -> 0 | D75: =SUM(D70:D74) -> 0 | E75: =SUM(E70:E74) -> 0 | F75: =SUM(F70:F74) -> 0 | G75: =SUM(G70:G74) -> 0 | H75: =SUM(H70:H74) -> 0 | I75: =SUM(I70:I74) -> 0 | J75: =SUM(J70:J74) -> 0 | K75: =SUM(K70:K74) -> 0 | L75: =SUM(L70:L74) -> 0 | M75: =SUM(M70:M74) -> 0 | N75: =SUM(N70:N74) -> 0
A77: Drużyna | C77: RAZEM | F77: I SERIA | I77: II SERIA | L77: III SERIA
C78: m.p | D78: w | E78: p | F78: m.p | G78: w | H78: p | I78: m.p | J78: w | K78: p | L78: m.p | M78: w | N78: p
B79: =_xlfn.IFNA(VLOOKUP(A79,Indywidualna[],2,0),0) -> 0 | C79: =I79+L79 -> 0 | D79: =J79+M79 -> 0 | E79: =K79+N79 -> 0 | F79: =_xlfn.IFNA(VLOOKUP($A79,Indywidualna[],COLUMNS($F78:F78)+7,0),0) -> 0 | G79: =_xlfn.IFNA(VLOOKUP($A79,Indywidualna[],COLUMNS($F78:G78)+7,0),0) -> 0 | H79: =_xlfn.IFNA(VLOOKUP($A79,Indywidualna[],COLUMNS($F78:H78)+7,0),0) -> 0 | I79: =_xlfn.IFNA(VLOOKUP($A79,Indywidualna[],COLUMNS($F78:I78)+7,0),0) -> 0 | J79: =_xlfn.IFNA(VLOOKUP($A79,Indywidualna[],COLUMNS($F78:J78)+7,0),0) -> 0 | K79: =_xlfn.IFNA(VLOOKUP($A79,Indywidualna[],COLUMNS($F78:K78)+7,0),0) -> 0 | L79: =_xlfn.IFNA(VLOOKUP($A79,Indywidualna[],COLUMNS($F78:L78)+7,0),0) -> 0 | M79: =_xlfn.IFNA(VLOOKUP($A79,Indywidualna[],COLUMNS($F78:M78)+7,0),0) -> 0 | N79: =_xlfn.IFNA(VLOOKUP($A79,Indywidualna[],COLUMNS($F78:N78)+7,0),0) -> 0
B80: =_xlfn.IFNA(VLOOKUP(A80,Indywidualna[],2,0),0) -> 0 | C80: =I80+L80 -> 0 | D80: =J80+M80 -> 0 | E80: =K80+N80 -> 0 | F80: =_xlfn.IFNA(VLOOKUP($A80,Indywidualna[],COLUMNS($F79:F79)+7,0),0) -> 0 | G80: =_xlfn.IFNA(VLOOKUP($A80,Indywidualna[],COLUMNS($F79:G79)+7,0),0) -> 0 | H80: =_xlfn.IFNA(VLOOKUP($A80,Indywidualna[],COLUMNS($F79:H79)+7,0),0) -> 0 | I80: =_xlfn.IFNA(VLOOKUP($A80,Indywidualna[],COLUMNS($F79:I79)+7,0),0) -> 0 | J80: =_xlfn.IFNA(VLOOKUP($A80,Indywidualna[],COLUMNS($F79:J79)+7,0),0) -> 0 | K80: =_xlfn.IFNA(VLOOKUP($A80,Indywidualna[],COLUMNS($F79:K79)+7,0),0) -> 0 | L80: =_xlfn.IFNA(VLOOKUP($A80,Indywidualna[],COLUMNS($F79:L79)+7,0),0) -> 0 | M80: =_xlfn.IFNA(VLOOKUP($A80,Indywidualna[],COLUMNS($F79:M79)+7,0),0) -> 0 | N80: =_xlfn.IFNA(VLOOKUP($A80,Indywidualna[],COLUMNS($F79:N79)+7,0),0) -> 0
B81: =_xlfn.IFNA(VLOOKUP(A81,Indywidualna[],2,0),0) -> 0 | C81: =I81+L81 -> 0 | D81: =J81+M81 -> 0 | E81: =K81+N81 -> 0 | F81: =_xlfn.IFNA(VLOOKUP($A81,Indywidualna[],COLUMNS($F80:F80)+7,0),0) -> 0 | G81: =_xlfn.IFNA(VLOOKUP($A81,Indywidualna[],COLUMNS($F80:G80)+7,0),0) -> 0 | H81: =_xlfn.IFNA(VLOOKUP($A81,Indywidualna[],COLUMNS($F80:H80)+7,0),0) -> 0 | I81: =_xlfn.IFNA(VLOOKUP($A81,Indywidualna[],COLUMNS($F80:I80)+7,0),0) -> 0 | J81: =_xlfn.IFNA(VLOOKUP($A81,Indywidualna[],COLUMNS($F80:J80)+7,0),0) -> 0 | K81: =_xlfn.IFNA(VLOOKUP($A81,Indywidualna[],COLUMNS($F80:K80)+7,0),0) -> 0 | L81: =_xlfn.IFNA(VLOOKUP($A81,Indywidualna[],COLUMNS($F80:L80)+7,0),0) -> 0 | M81: =_xlfn.IFNA(VLOOKUP($A81,Indywidualna[],COLUMNS($F80:M80)+7,0),0) -> 0 | N81: =_xlfn.IFNA(VLOOKUP($A81,Indywidualna[],COLUMNS($F80:N80)+7,0),0) -> 0
B82: =_xlfn.IFNA(VLOOKUP(A82,Indywidualna[],2,0),0) -> 0 | C82: =I82+L82 -> 0 | D82: =J82+M82 -> 0 | E82: =K82+N82 -> 0 | F82: =_xlfn.IFNA(VLOOKUP($A82,Indywidualna[],COLUMNS($F81:F81)+7,0),0) -> 0 | G82: =_xlfn.IFNA(VLOOKUP($A82,Indywidualna[],COLUMNS($F81:G81)+7,0),0) -> 0 | H82: =_xlfn.IFNA(VLOOKUP($A82,Indywidualna[],COLUMNS($F81:H81)+7,0),0) -> 0 | I82: =_xlfn.IFNA(VLOOKUP($A82,Indywidualna[],COLUMNS($F81:I81)+7,0),0) -> 0 | J82: =_xlfn.IFNA(VLOOKUP($A82,Indywidualna[],COLUMNS($F81:J81)+7,0),0) -> 0 | K82: =_xlfn.IFNA(VLOOKUP($A82,Indywidualna[],COLUMNS($F81:K81)+7,0),0) -> 0 | L82: =_xlfn.IFNA(VLOOKUP($A82,Indywidualna[],COLUMNS($F81:L81)+7,0),0) -> 0 | M82: =_xlfn.IFNA(VLOOKUP($A82,Indywidualna[],COLUMNS($F81:M81)+7,0),0) -> 0 | N82: =_xlfn.IFNA(VLOOKUP($A82,Indywidualna[],COLUMNS($F81:N81)+7,0),0) -> 0
B83: =_xlfn.IFNA(VLOOKUP(A83,Indywidualna[],2,0),0) -> 0 | C83: =I83+L83 -> 0 | D83: =J83+M83 -> 0 | E83: =K83+N83 -> 0 | F83: =_xlfn.IFNA(VLOOKUP($A83,Indywidualna[],COLUMNS($F82:F82)+7,0),0) -> 0 | G83: =_xlfn.IFNA(VLOOKUP($A83,Indywidualna[],COLUMNS($F82:G82)+7,0),0) -> 0 | H83: =_xlfn.IFNA(VLOOKUP($A83,Indywidualna[],COLUMNS($F82:H82)+7,0),0) -> 0 | I83: =_xlfn.IFNA(VLOOKUP($A83,Indywidualna[],COLUMNS($F82:I82)+7,0),0) -> 0 | J83: =_xlfn.IFNA(VLOOKUP($A83,Indywidualna[],COLUMNS($F82:J82)+7,0),0) -> 0 | K83: =_xlfn.IFNA(VLOOKUP($A83,Indywidualna[],COLUMNS($F82:K82)+7,0),0) -> 0 | L83: =_xlfn.IFNA(VLOOKUP($A83,Indywidualna[],COLUMNS($F82:L82)+7,0),0) -> 0 | M83: =_xlfn.IFNA(VLOOKUP($A83,Indywidualna[],COLUMNS($F82:M82)+7,0),0) -> 0 | N83: =_xlfn.IFNA(VLOOKUP($A83,Indywidualna[],COLUMNS($F82:N82)+7,0),0) -> 0
A84: Podpis Kapitana | C84: =SUM(C79:C83) -> 0 | D84: =SUM(D79:D83) -> 0 | E84: =SUM(E79:E83) -> 0 | F84: =SUM(F79:F83) -> 0 | G84: =SUM(G79:G83) -> 0 | H84: =SUM(H79:H83) -> 0 | I84: =SUM(I79:I83) -> 0 | J84: =SUM(J79:J83) -> 0 | K84: =SUM(K79:K83) -> 0 | L84: =SUM(L79:L83) -> 0 | M84: =SUM(M79:M83) -> 0 | N84: =SUM(N79:N83) -> 0
A86: Drużyna | C86: RAZEM | F86: I SERIA | I86: II SERIA | L86: III SERIA
C87: m.p | D87: w | E87: p | F87: m.p | G87: w | H87: p | I87: m.p | J87: w | K87: p | L87: m.p | M87: w | N87: p
B88: =_xlfn.IFNA(VLOOKUP(A88,Indywidualna[],2,0),0) -> 0 | C88: =I88+L88 -> 0 | D88: =J88+M88 -> 0 | E88: =K88+N88 -> 0 | F88: =_xlfn.IFNA(VLOOKUP($A88,Indywidualna[],COLUMNS($F87:F87)+7,0),0) -> 0 | G88: =_xlfn.IFNA(VLOOKUP($A88,Indywidualna[],COLUMNS($F87:G87)+7,0),0) -> 0 | H88: =_xlfn.IFNA(VLOOKUP($A88,Indywidualna[],COLUMNS($F87:H87)+7,0),0) -> 0 | I88: =_xlfn.IFNA(VLOOKUP($A88,Indywidualna[],COLUMNS($F87:I87)+7,0),0) -> 0 | J88: =_xlfn.IFNA(VLOOKUP($A88,Indywidualna[],COLUMNS($F87:J87)+7,0),0) -> 0 | K88: =_xlfn.IFNA(VLOOKUP($A88,Indywidualna[],COLUMNS($F87:K87)+7,0),0) -> 0 | L88: =_xlfn.IFNA(VLOOKUP($A88,Indywidualna[],COLUMNS($F87:L87)+7,0),0) -> 0 | M88: =_xlfn.IFNA(VLOOKUP($A88,Indywidualna[],COLUMNS($F87:M87)+7,0),0) -> 0 | N88: =_xlfn.IFNA(VLOOKUP($A88,Indywidualna[],COLUMNS($F87:N87)+7,0),0) -> 0
B89: =_xlfn.IFNA(VLOOKUP(A89,Indywidualna[],2,0),0) -> 0 | C89: =I89+L89 -> 0 | D89: =J89+M89 -> 0 | E89: =K89+N89 -> 0 | F89: =_xlfn.IFNA(VLOOKUP($A89,Indywidualna[],COLUMNS($F88:F88)+7,0),0) -> 0 | G89: =_xlfn.IFNA(VLOOKUP($A89,Indywidualna[],COLUMNS($F88:G88)+7,0),0) -> 0 | H89: =_xlfn.IFNA(VLOOKUP($A89,Indywidualna[],COLUMNS($F88:H88)+7,0),0) -> 0 | I89: =_xlfn.IFNA(VLOOKUP($A89,Indywidualna[],COLUMNS($F88:I88)+7,0),0) -> 0 | J89: =_xlfn.IFNA(VLOOKUP($A89,Indywidualna[],COLUMNS($F88:J88)+7,0),0) -> 0 | K89: =_xlfn.IFNA(VLOOKUP($A89,Indywidualna[],COLUMNS($F88:K88)+7,0),0) -> 0 | L89: =_xlfn.IFNA(VLOOKUP($A89,Indywidualna[],COLUMNS($F88:L88)+7,0),0) -> 0 | M89: =_xlfn.IFNA(VLOOKUP($A89,Indywidualna[],COLUMNS($F88:M88)+7,0),0) -> 0 | N89: =_xlfn.IFNA(VLOOKUP($A89,Indywidualna[],COLUMNS($F88:N88)+7,0),0) -> 0
B90: =_xlfn.IFNA(VLOOKUP(A90,Indywidualna[],2,0),0) -> 0 | C90: =I90+L90 -> 0 | D90: =J90+M90 -> 0 | E90: =K90+N90 -> 0 | F90: =_xlfn.IFNA(VLOOKUP($A90,Indywidualna[],COLUMNS($F89:F89)+7,0),0) -> 0 | G90: =_xlfn.IFNA(VLOOKUP($A90,Indywidualna[],COLUMNS($F89:G89)+7,0),0) -> 0 | H90: =_xlfn.IFNA(VLOOKUP($A90,Indywidualna[],COLUMNS($F89:H89)+7,0),0) -> 0 | I90: =_xlfn.IFNA(VLOOKUP($A90,Indywidualna[],COLUMNS($F89:I89)+7,0),0) -> 0 | J90: =_xlfn.IFNA(VLOOKUP($A90,Indywidualna[],COLUMNS($F89:J89)+7,0),0) -> 0 | K90: =_xlfn.IFNA(VLOOKUP($A90,Indywidualna[],COLUMNS($F89:K89)+7,0),0) -> 0 | L90: =_xlfn.IFNA(VLOOKUP($A90,Indywidualna[],COLUMNS($F89:L89)+7,0),0) -> 0 | M90: =_xlfn.IFNA(VLOOKUP($A90,Indywidualna[],COLUMNS($F89:M89)+7,0),0) -> 0 | N90: =_xlfn.IFNA(VLOOKUP($A90,Indywidualna[],COLUMNS($F89:N89)+7,0),0) -> 0
B91: =_xlfn.IFNA(VLOOKUP(A91,Indywidualna[],2,0),0) -> 0 | C91: =I91+L91 -> 0 | D91: =J91+M91 -> 0 | E91: =K91+N91 -> 0 | F91: =_xlfn.IFNA(VLOOKUP($A91,Indywidualna[],COLUMNS($F90:F90)+7,0),0) -> 0 | G91: =_xlfn.IFNA(VLOOKUP($A91,Indywidualna[],COLUMNS($F90:G90)+7,0),0) -> 0 | H91: =_xlfn.IFNA(VLOOKUP($A91,Indywidualna[],COLUMNS($F90:H90)+7,0),0) -> 0 | I91: =_xlfn.IFNA(VLOOKUP($A91,Indywidualna[],COLUMNS($F90:I90)+7,0),0) -> 0 | J91: =_xlfn.IFNA(VLOOKUP($A91,Indywidualna[],COLUMNS($F90:J90)+7,0),0) -> 0 | K91: =_xlfn.IFNA(VLOOKUP($A91,Indywidualna[],COLUMNS($F90:K90)+7,0),0) -> 0 | L91: =_xlfn.IFNA(VLOOKUP($A91,Indywidualna[],COLUMNS($F90:L90)+7,0),0) -> 0 | M91: =_xlfn.IFNA(VLOOKUP($A91,Indywidualna[],COLUMNS($F90:M90)+7,0),0) -> 0 | N91: =_xlfn.IFNA(VLOOKUP($A91,Indywidualna[],COLUMNS($F90:N90)+7,0),0) -> 0
B92: =_xlfn.IFNA(VLOOKUP(A92,Indywidualna[],2,0),0) -> 0 | C92: =I92+L92 -> 0 | D92: =J92+M92 -> 0 | E92: =K92+N92 -> 0 | F92: =_xlfn.IFNA(VLOOKUP($A92,Indywidualna[],COLUMNS($F91:F91)+7,0),0) -> 0 | G92: =_xlfn.IFNA(VLOOKUP($A92,Indywidualna[],COLUMNS($F91:G91)+7,0),0) -> 0 | H92: =_xlfn.IFNA(VLOOKUP($A92,Indywidualna[],COLUMNS($F91:H91)+7,0),0) -> 0 | I92: =_xlfn.IFNA(VLOOKUP($A92,Indywidualna[],COLUMNS($F91:I91)+7,0),0) -> 0 | J92: =_xlfn.IFNA(VLOOKUP($A92,Indywidualna[],COLUMNS($F91:J91)+7,0),0) -> 0 | K92: =_xlfn.IFNA(VLOOKUP($A92,Indywidualna[],COLUMNS($F91:K91)+7,0),0) -> 0 | L92: =_xlfn.IFNA(VLOOKUP($A92,Indywidualna[],COLUMNS($F91:L91)+7,0),0) -> 0 | M92: =_xlfn.IFNA(VLOOKUP($A92,Indywidualna[],COLUMNS($F91:M91)+7,0),0) -> 0 | N92: =_xlfn.IFNA(VLOOKUP($A92,Indywidualna[],COLUMNS($F91:N91)+7,0),0) -> 0
A93: Podpis Kapitana | C93: =SUM(C88:C92) -> 0 | D93: =SUM(D88:D92) -> 0 | E93: =SUM(E88:E92) -> 0 | F93: =SUM(F88:F92) -> 0 | G93: =SUM(G88:G92) -> 0 | H93: =SUM(H88:H92) -> 0 | I93: =SUM(I88:I92) -> 0 | J93: =SUM(J88:J92) -> 0 | K93: =SUM(K88:K92) -> 0 | L93: =SUM(L88:L92) -> 0 | M93: =SUM(M88:M92) -> 0 | N93: =SUM(N88:N92) -> 0
A95: Drużyna | C95: RAZEM | F95: I SERIA | I95: II SERIA | L95: III SERIA
C96: m.p | D96: w | E96: p | F96: m.p | G96: w | H96: p | I96: m.p | J96: w | K96: p | L96: m.p | M96: w | N96: p
B97: =_xlfn.IFNA(VLOOKUP(A97,Indywidualna[],2,0),0) -> 0 | C97: =I97+L97 -> 0 | D97: =J97+M97 -> 0 | E97: =K97+N97 -> 0 | F97: =_xlfn.IFNA(VLOOKUP($A97,Indywidualna[],COLUMNS($F96:F96)+7,0),0) -> 0 | G97: =_xlfn.IFNA(VLOOKUP($A97,Indywidualna[],COLUMNS($F96:G96)+7,0),0) -> 0 | H97: =_xlfn.IFNA(VLOOKUP($A97,Indywidualna[],COLUMNS($F96:H96)+7,0),0) -> 0 | I97: =_xlfn.IFNA(VLOOKUP($A97,Indywidualna[],COLUMNS($F96:I96)+7,0),0) -> 0 | J97: =_xlfn.IFNA(VLOOKUP($A97,Indywidualna[],COLUMNS($F96:J96)+7,0),0) -> 0 | K97: =_xlfn.IFNA(VLOOKUP($A97,Indywidualna[],COLUMNS($F96:K96)+7,0),0) -> 0 | L97: =_xlfn.IFNA(VLOOKUP($A97,Indywidualna[],COLUMNS($F96:L96)+7,0),0) -> 0 | M97: =_xlfn.IFNA(VLOOKUP($A97,Indywidualna[],COLUMNS($F96:M96)+7,0),0) -> 0 | N97: =_xlfn.IFNA(VLOOKUP($A97,Indywidualna[],COLUMNS($F96:N96)+7,0),0) -> 0
B98: =_xlfn.IFNA(VLOOKUP(A98,Indywidualna[],2,0),0) -> 0 | C98: =I98+L98 -> 0 | D98: =J98+M98 -> 0 | E98: =K98+N98 -> 0 | F98: =_xlfn.IFNA(VLOOKUP($A98,Indywidualna[],COLUMNS($F97:F97)+7,0),0) -> 0 | G98: =_xlfn.IFNA(VLOOKUP($A98,Indywidualna[],COLUMNS($F97:G97)+7,0),0) -> 0 | H98: =_xlfn.IFNA(VLOOKUP($A98,Indywidualna[],COLUMNS($F97:H97)+7,0),0) -> 0 | I98: =_xlfn.IFNA(VLOOKUP($A98,Indywidualna[],COLUMNS($F97:I97)+7,0),0) -> 0 | J98: =_xlfn.IFNA(VLOOKUP($A98,Indywidualna[],COLUMNS($F97:J97)+7,0),0) -> 0 | K98: =_xlfn.IFNA(VLOOKUP($A98,Indywidualna[],COLUMNS($F97:K97)+7,0),0) -> 0 | L98: =_xlfn.IFNA(VLOOKUP($A98,Indywidualna[],COLUMNS($F97:L97)+7,0),0) -> 0 | M98: =_xlfn.IFNA(VLOOKUP($A98,Indywidualna[],COLUMNS($F97:M97)+7,0),0) -> 0 | N98: =_xlfn.IFNA(VLOOKUP($A98,Indywidualna[],COLUMNS($F97:N97)+7,0),0) -> 0
B99: =_xlfn.IFNA(VLOOKUP(A99,Indywidualna[],2,0),0) -> 0 | C99: =I99+L99 -> 0 | D99: =J99+M99 -> 0 | E99: =K99+N99 -> 0 | F99: =_xlfn.IFNA(VLOOKUP($A99,Indywidualna[],COLUMNS($F98:F98)+7,0),0) -> 0 | G99: =_xlfn.IFNA(VLOOKUP($A99,Indywidualna[],COLUMNS($F98:G98)+7,0),0) -> 0 | H99: =_xlfn.IFNA(VLOOKUP($A99,Indywidualna[],COLUMNS($F98:H98)+7,0),0) -> 0 | I99: =_xlfn.IFNA(VLOOKUP($A99,Indywidualna[],COLUMNS($F98:I98)+7,0),0) -> 0 | J99: =_xlfn.IFNA(VLOOKUP($A99,Indywidualna[],COLUMNS($F98:J98)+7,0),0) -> 0 | K99: =_xlfn.IFNA(VLOOKUP($A99,Indywidualna[],COLUMNS($F98:K98)+7,0),0) -> 0 | L99: =_xlfn.IFNA(VLOOKUP($A99,Indywidualna[],COLUMNS($F98:L98)+7,0),0) -> 0 | M99: =_xlfn.IFNA(VLOOKUP($A99,Indywidualna[],COLUMNS($F98:M98)+7,0),0) -> 0 | N99: =_xlfn.IFNA(VLOOKUP($A99,Indywidualna[],COLUMNS($F98:N98)+7,0),0) -> 0
B100: =_xlfn.IFNA(VLOOKUP(A100,Indywidualna[],2,0),0) -> 0 | C100: =I100+L100 -> 0 | D100: =J100+M100 -> 0 | E100: =K100+N100 -> 0 | F100: =_xlfn.IFNA(VLOOKUP($A100,Indywidualna[],COLUMNS($F99:F99)+7,0),0) -> 0 | G100: =_xlfn.IFNA(VLOOKUP($A100,Indywidualna[],COLUMNS($F99:G99)+7,0),0) -> 0 | H100: =_xlfn.IFNA(VLOOKUP($A100,Indywidualna[],COLUMNS($F99:H99)+7,0),0) -> 0 | I100: =_xlfn.IFNA(VLOOKUP($A100,Indywidualna[],COLUMNS($F99:I99)+7,0),0) -> 0 | J100: =_xlfn.IFNA(VLOOKUP($A100,Indywidualna[],COLUMNS($F99:J99)+7,0),0) -> 0 | K100: =_xlfn.IFNA(VLOOKUP($A100,Indywidualna[],COLUMNS($F99:K99)+7,0),0) -> 0 | L100: =_xlfn.IFNA(VLOOKUP($A100,Indywidualna[],COLUMNS($F99:L99)+7,0),0) -> 0 | M100: =_xlfn.IFNA(VLOOKUP($A100,Indywidualna[],COLUMNS($F99:M99)+7,0),0) -> 0 | N100: =_xlfn.IFNA(VLOOKUP($A100,Indywidualna[],COLUMNS($F99:N99)+7,0),0) -> 0
B101: =_xlfn.IFNA(VLOOKUP(A101,Indywidualna[],2,0),0) -> 0 | C101: =I101+L101 -> 0 | D101: =J101+M101 -> 0 | E101: =K101+N101 -> 0 | F101: =_xlfn.IFNA(VLOOKUP($A101,Indywidualna[],COLUMNS($F100:F100)+7,0),0) -> 0 | G101: =_xlfn.IFNA(VLOOKUP($A101,Indywidualna[],COLUMNS($F100:G100)+7,0),0) -> 0 | H101: =_xlfn.IFNA(VLOOKUP($A101,Indywidualna[],COLUMNS($F100:H100)+7,0),0) -> 0 | I101: =_xlfn.IFNA(VLOOKUP($A101,Indywidualna[],COLUMNS($F100:I100)+7,0),0) -> 0 | J101: =_xlfn.IFNA(VLOOKUP($A101,Indywidualna[],COLUMNS($F100:J100)+7,0),0) -> 0 | K101: =_xlfn.IFNA(VLOOKUP($A101,Indywidualna[],COLUMNS($F100:K100)+7,0),0) -> 0 | L101: =_xlfn.IFNA(VLOOKUP($A101,Indywidualna[],COLUMNS($F100:L100)+7,0),0) -> 0 | M101: =_xlfn.IFNA(VLOOKUP($A101,Indywidualna[],COLUMNS($F100:M100)+7,0),0) -> 0 | N101: =_xlfn.IFNA(VLOOKUP($A101,Indywidualna[],COLUMNS($F100:N100)+7,0),0) -> 0
A102: Podpis Kapitana | C102: =SUM(C97:C101) -> 0 | D102: =SUM(D97:D101) -> 0 | E102: =SUM(E97:E101) -> 0 | F102: =SUM(F97:F101) -> 0 | G102: =SUM(G97:G101) -> 0 | H102: =SUM(H97:H101) -> 0 | I102: =SUM(I97:I101) -> 0 | J102: =SUM(J97:J101) -> 0 | K102: =SUM(K97:K101) -> 0 | L102: =SUM(L97:L101) -> 0 | M102: =SUM(M97:M101) -> 0 | N102: =SUM(N97:N101) -> 0
A104: Drużyna | C104: RAZEM | F104: I SERIA | I104: II SERIA | L104: III SERIA
C105: m.p | D105: w | E105: p | F105: m.p | G105: w | H105: p | I105: m.p | J105: w | K105: p | L105: m.p | M105: w | N105: p
B106: =_xlfn.IFNA(VLOOKUP(A106,Indywidualna[],2,0),0) -> 0 | C106: =I106+L106 -> 0 | D106: =J106+M106 -> 0 | E106: =K106+N106 -> 0 | F106: =_xlfn.IFNA(VLOOKUP($A106,Indywidualna[],COLUMNS($F105:F105)+7,0),0) -> 0 | G106: =_xlfn.IFNA(VLOOKUP($A106,Indywidualna[],COLUMNS($F105:G105)+7,0),0) -> 0 | H106: =_xlfn.IFNA(VLOOKUP($A106,Indywidualna[],COLUMNS($F105:H105)+7,0),0) -> 0 | I106: =_xlfn.IFNA(VLOOKUP($A106,Indywidualna[],COLUMNS($F105:I105)+7,0),0) -> 0 | J106: =_xlfn.IFNA(VLOOKUP($A106,Indywidualna[],COLUMNS($F105:J105)+7,0),0) -> 0 | K106: =_xlfn.IFNA(VLOOKUP($A106,Indywidualna[],COLUMNS($F105:K105)+7,0),0) -> 0 | L106: =_xlfn.IFNA(VLOOKUP($A106,Indywidualna[],COLUMNS($F105:L105)+7,0),0) -> 0 | M106: =_xlfn.IFNA(VLOOKUP($A106,Indywidualna[],COLUMNS($F105:M105)+7,0),0) -> 0 | N106: =_xlfn.IFNA(VLOOKUP($A106,Indywidualna[],COLUMNS($F105:N105)+7,0),0) -> 0
B107: =_xlfn.IFNA(VLOOKUP(A107,Indywidualna[],2,0),0) -> 0 | C107: =I107+L107 -> 0 | D107: =J107+M107 -> 0 | E107: =K107+N107 -> 0 | F107: =_xlfn.IFNA(VLOOKUP($A107,Indywidualna[],COLUMNS($F106:F106)+7,0),0) -> 0 | G107: =_xlfn.IFNA(VLOOKUP($A107,Indywidualna[],COLUMNS($F106:G106)+7,0),0) -> 0 | H107: =_xlfn.IFNA(VLOOKUP($A107,Indywidualna[],COLUMNS($F106:H106)+7,0),0) -> 0 | I107: =_xlfn.IFNA(VLOOKUP($A107,Indywidualna[],COLUMNS($F106:I106)+7,0),0) -> 0 | J107: =_xlfn.IFNA(VLOOKUP($A107,Indywidualna[],COLUMNS($F106:J106)+7,0),0) -> 0 | K107: =_xlfn.IFNA(VLOOKUP($A107,Indywidualna[],COLUMNS($F106:K106)+7,0),0) -> 0 | L107: =_xlfn.IFNA(VLOOKUP($A107,Indywidualna[],COLUMNS($F106:L106)+7,0),0) -> 0 | M107: =_xlfn.IFNA(VLOOKUP($A107,Indywidualna[],COLUMNS($F106:M106)+7,0),0) -> 0 | N107: =_xlfn.IFNA(VLOOKUP($A107,Indywidualna[],COLUMNS($F106:N106)+7,0),0) -> 0
B108: =_xlfn.IFNA(VLOOKUP(A108,Indywidualna[],2,0),0) -> 0 | C108: =I108+L108 -> 0 | D108: =J108+M108 -> 0 | E108: =K108+N108 -> 0 | F108: =_xlfn.IFNA(VLOOKUP($A108,Indywidualna[],COLUMNS($F107:F107)+7,0),0) -> 0 | G108: =_xlfn.IFNA(VLOOKUP($A108,Indywidualna[],COLUMNS($F107:G107)+7,0),0) -> 0 | H108: =_xlfn.IFNA(VLOOKUP($A108,Indywidualna[],COLUMNS($F107:H107)+7,0),0) -> 0 | I108: =_xlfn.IFNA(VLOOKUP($A108,Indywidualna[],COLUMNS($F107:I107)+7,0),0) -> 0 | J108: =_xlfn.IFNA(VLOOKUP($A108,Indywidualna[],COLUMNS($F107:J107)+7,0),0) -> 0 | K108: =_xlfn.IFNA(VLOOKUP($A108,Indywidualna[],COLUMNS($F107:K107)+7,0),0) -> 0 | L108: =_xlfn.IFNA(VLOOKUP($A108,Indywidualna[],COLUMNS($F107:L107)+7,0),0) -> 0 | M108: =_xlfn.IFNA(VLOOKUP($A108,Indywidualna[],COLUMNS($F107:M107)+7,0),0) -> 0 | N108: =_xlfn.IFNA(VLOOKUP($A108,Indywidualna[],COLUMNS($F107:N107)+7,0),0) -> 0
B109: =_xlfn.IFNA(VLOOKUP(A109,Indywidualna[],2,0),0) -> 0 | C109: =I109+L109 -> 0 | D109: =J109+M109 -> 0 | E109: =K109+N109 -> 0 | F109: =_xlfn.IFNA(VLOOKUP($A109,Indywidualna[],COLUMNS($F108:F108)+7,0),0) -> 0 | G109: =_xlfn.IFNA(VLOOKUP($A109,Indywidualna[],COLUMNS($F108:G108)+7,0),0) -> 0 | H109: =_xlfn.IFNA(VLOOKUP($A109,Indywidualna[],COLUMNS($F108:H108)+7,0),0) -> 0 | I109: =_xlfn.IFNA(VLOOKUP($A109,Indywidualna[],COLUMNS($F108:I108)+7,0),0) -> 0 | J109: =_xlfn.IFNA(VLOOKUP($A109,Indywidualna[],COLUMNS($F108:J108)+7,0),0) -> 0 | K109: =_xlfn.IFNA(VLOOKUP($A109,Indywidualna[],COLUMNS($F108:K108)+7,0),0) -> 0 | L109: =_xlfn.IFNA(VLOOKUP($A109,Indywidualna[],COLUMNS($F108:L108)+7,0),0) -> 0 | M109: =_xlfn.IFNA(VLOOKUP($A109,Indywidualna[],COLUMNS($F108:M108)+7,0),0) -> 0 | N109: =_xlfn.IFNA(VLOOKUP($A109,Indywidualna[],COLUMNS($F108:N108)+7,0),0) -> 0
B110: =_xlfn.IFNA(VLOOKUP(A110,Indywidualna[],2,0),0) -> 0 | C110: =I110+L110 -> 0 | D110: =J110+M110 -> 0 | E110: =K110+N110 -> 0 | F110: =_xlfn.IFNA(VLOOKUP($A110,Indywidualna[],COLUMNS($F109:F109)+7,0),0) -> 0 | G110: =_xlfn.IFNA(VLOOKUP($A110,Indywidualna[],COLUMNS($F109:G109)+7,0),0) -> 0 | H110: =_xlfn.IFNA(VLOOKUP($A110,Indywidualna[],COLUMNS($F109:H109)+7,0),0) -> 0 | I110: =_xlfn.IFNA(VLOOKUP($A110,Indywidualna[],COLUMNS($F109:I109)+7,0),0) -> 0 | J110: =_xlfn.IFNA(VLOOKUP($A110,Indywidualna[],COLUMNS($F109:J109)+7,0),0) -> 0 | K110: =_xlfn.IFNA(VLOOKUP($A110,Indywidualna[],COLUMNS($F109:K109)+7,0),0) -> 0 | L110: =_xlfn.IFNA(VLOOKUP($A110,Indywidualna[],COLUMNS($F109:L109)+7,0),0) -> 0 | M110: =_xlfn.IFNA(VLOOKUP($A110,Indywidualna[],COLUMNS($F109:M109)+7,0),0) -> 0 | N110: =_xlfn.IFNA(VLOOKUP($A110,Indywidualna[],COLUMNS($F109:N109)+7,0),0) -> 0
A111: Podpis Kapitana | C111: =SUM(C106:C110) -> 0 | D111: =SUM(D106:D110) -> 0 | E111: =SUM(E106:E110) -> 0 | F111: =SUM(F106:F110) -> 0 | G111: =SUM(G106:G110) -> 0 | H111: =SUM(H106:H110) -> 0 | I111: =SUM(I106:I110) -> 0 | J111: =SUM(J106:J110) -> 0 | K111: =SUM(K106:K110) -> 0 | L111: =SUM(L106:L110) -> 0 | M111: =SUM(M106:M110) -> 0 | N111: =SUM(N106:N110) -> 0

Sheet tabela_liga
A1: Liga o/ Kaszubsko-Pomorskiego 2018 | C1: RAZEM | F1: I SERIA | I1: II SERIA | L1: III SERIA
A2: m-sc | B2: Drużyna | C2: m/p | D2: w | E2: p | F2: m/p2 | G2: w2 | H2: p2 | I2: m/p3 | J2: w3 | K2: p3 | L2: m/p4 | M2: w4 | N2: p4
A3: 1. | B3: =liga!A42 -> FALA Świekatowo | C3: =liga!C48 -> 9063 | D3: =liga!D48 -> 97 | E3: =liga!E48 -> 14 | F3: =liga!I48 -> 3397 | G3: =liga!J48 -> 39 | H3: =liga!K48 -> 6 | I3: =liga!L48 -> 2335 | J3: =liga!M48 -> 29 | K3: =liga!N48 -> 7
A4: 2. | B4: =liga!A60 -> KS KRAJNA Złotów | C4: =liga!C66 -> 9062 | D4: =liga!D66 -> 101 | E4: =liga!E66 -> 21 | F4: =liga!I66 -> 3405 | G4: =liga!J66 -> 37 | H4: =liga!K66 -> 6 | I4: =liga!L66 -> 2218 | J4: =liga!M66 -> 25 | K4: =liga!N66 -> 9
A5: 3. | B5: =liga!A33 -> S.K. FAMILY Dziemiany | C5: =liga!C39 -> 7889 | D5: =liga!D39 -> 94 | E5: =liga!E39 -> 25 | F5: =liga!I39 -> 2764 | G5: =liga!J39 -> 29 | H5: =liga!K39 -> 5 | I5: =liga!L39 -> 2580 | J5: =liga!M39 -> 36 | K5: =liga!N39 -> 13
A6: 4. | B6: =liga!A6 -> MOKSiR Puck | C6: =liga!C12 -> 7010 | D6: =liga!D12 -> 78 | E6: =liga!E12 -> 21 | F6: =liga!I12 -> 2343 | G6: =liga!J12 -> 27 | H6: =liga!K12 -> 6 | I6: =liga!L12 -> 2425 | J6: =liga!M12 -> 27 | K6: =liga!N12 -> 8
A7: 5. | B7: =liga!A51 -> GOKSiR Liniewo | C7: =liga!C57 -> 6923 | D7: =liga!D57 -> 69 | E7: =liga!E57 -> 16 | F7: =liga!I57 -> 2915 | G7: =liga!J57 -> 26 | H7: =liga!K57 -> 5 | I7: =liga!L57 -> 1798 | J7: =liga!M57 -> 18 | K7: =liga!N57 -> 6
A8: 6. | B8: =liga!A15 -> MOKSiR Puck II | C8: =liga!C21 -> 6853 | D8: =liga!D21 -> 73 | E8: =liga!E21 -> 20 | F8: =liga!I21 -> 2282 | G8: =liga!J21 -> 24 | H8: =liga!K21 -> 7 | I8: =liga!L21 -> 2486 | J8: =liga!M21 -> 26 | K8: =liga!N21 -> 8
A9: 7. | B9: =liga!A24 -> KS KRAJNA Złotów II | C9: =liga!C30 -> 6543 | D9: =liga!D30 -> 85 | E9: =liga!E30 -> 29 | F9: =liga!I30 -> 1579 | G9: =liga!J30 -> 25 | H9: =liga!K30 -> 11 | I9: =liga!L30 -> 2121 | J9: =liga!M30 -> 26 | K9: =liga!N30 -> 9
A10: 8. | B10: =liga!A78 -> 0 | C10: =liga!C84 -> 0 | D10: =liga!D84 -> 0 | E10: =liga!E84 -> 0 | F10: =liga!I84 -> 0 | G10: =liga!J84 -> 0 | H10: =liga!K84 -> 0 | I10: =liga!L84 -> 0 | J10: =liga!M84 -> 0 | K10: =liga!N84 -> 0
A11: 9. | B11: 0 | C11: =liga!C75 -> 0 | D11: =liga!D75 -> 0 | E11: =liga!E75 -> 0 | F11: =liga!I75 -> 0 | G11: =liga!J75 -> 0 | H11: =liga!K75 -> 0 | I11: =liga!L75 -> 0 | J11: =liga!M75 -> 0 | K11: =liga!N75 -> 0
A12: 10. | B12: =liga!A96 -> 0 | C12: =liga!C102 -> 0 | D12: =liga!D102 -> 0 | E12: =liga!E102 -> 0 | F12: =liga!I102 -> 0 | G12: =liga!J102 -> 0 | H12: =liga!K102 -> 0 | I12: =liga!L102 -> 0 | J12: =liga!M102 -> 0 | K12: =liga!N102 -> 0
A13: 11. | B13: =liga!A87 -> 0 | C13: =liga!C93 -> 0 | D13: =liga!D93 -> 0 | E13: =liga!E93 -> 0 | F13: =liga!I93 -> 0 | G13: =liga!J93 -> 0 | H13: =liga!K93 -> 0 | I13: =liga!L93 -> 0 | J13: =liga!M93 -> 0 | K13: =liga!N93 -> 0
A14: 12. | B14: =liga!A105 -> 0 | C14: =liga!C111 -> 0 | D14: =liga!D111 -> 0 | E14: =liga!E111 -> 0 | F14: =liga!I111 -> 0 | G14: =liga!J111 -> 0 | H14: =liga!K111 -> 0 | I14: =liga!L111 -> 0 | J14: =liga!M111 -> 0 | K14: =liga!N111 -> 0

Sheet zgloszenie
A1: Karta zgłoszenia drużyny
A2: …………………………………………………………………………………………………………………..
A3: Drużyna
A4: l.p. | B4: Zawodnik
A5: 1. | B5: ………………………………………………………………………………………………………
A6: 2. | B6: ………………………………………………………………………………………………………
A7: 3. | B7: ………………………………………………………………………………………………………
A8: 4. | B8: ………………………………………………………………………………………………………
A9: R1. | B9: ………………………………………………………………………………………………………
A11: Karta zgłoszenia drużyny
A12: …………………………………………………………………………………………………………………..
A13: Drużyna
A14: l.p. | B14: Zawodnik
A15: 5. | B15: ………………………………………………………………………………………………………
A16: 6. | B16: ………………………………………………………………………………………………………
A17: 7. | B17: ………………………………………………………………………………………………………
A18: 8. | B18: ………………………………………………………………………………………………………
A19: R2. | B19: ………………………………………………………………………………………………………
A21: Karta zgłoszenia drużyny
A22: …………………………………………………………………………………………………………………..
A23: Drużyna
A24: l.p. | B24: Zawodnik
A25: 9. | B25: ………………………………………………………………………………………………………
A26: 10. | B26: ………………………………………………………………………………………………………
A27: 11. | B27: ………………………………………………………………………………………………………
A28: 12. | B28: ………………………………………………………………………………………………………
A29: R3. | B29: ………………………………………………………………………………………………………
A31: Karta zgłoszenia drużyny
A32: …………………………………………………………………………………………………………………..
A33: Drużyna
A34: l.p. | B34: Zawodnik
A35: 13. | B35: ………………………………………………………………………………………………………
A36: 14. | B36: ………………………………………………………………………………………………………
A37: 15. | B37: ………………………………………………………………………………………………………
A38: 16. | B38: ………………………………………………………………………………………………………
A39: R4. | B39: ………………………………………………………………………………………………………
A41: Karta zgłoszenia drużyny
A42: …………………………………………………………………………………………………………………..
A43: Drużyna
A44: l.p. | B44: Zawodnik
A45: 17. | B45: ………………………………………………………………………………………………………
A46: 18. | B46: ………………………………………………………………………………………………………
A47: 19. | B47: ………………………………………………………………………………………………………
A48: 20. | B48: ………………………………………………………………………………………………………
A49: R5. | B49: ………………………………………………………………………………………………………
A51: Karta zgłoszenia drużyny
A52: …………………………………………………………………………………………………………………..
A53: Drużyna
A54: l.p. | B54: Zawodnik
A55: 21. | B55: ………………………………………………………………………………………………………
A56: 22. | B56: ………………………………………………………………………………………………………
A57: 23. | B57: ………………………………………………………………………………………………………
A58: 24. | B58: ………………………………………………………………………………………………………
A59: R6. | B59: ………………………………………………………………………………………………………
A61: Karta zgłoszenia drużyny
A62: …………………………………………………………………………………………………………………..
A63: Drużyna
A64: l.p. | B64: Zawodnik
A65: 25. | B65: ………………………………………………………………………………………………………
A66: 26. | B66: ………………………………………………………………………………………………………
A67: 27. | B67: ………………………………………………………………………………………………………
A68: 28. | B68: ………………………………………………………………………………………………………
A69: R7. | B69: ………………………………………………………………………………………………………
A71: Karta zgłoszenia drużyny
A72: …………………………………………………………………………………………………………………..
A73: Drużyna
A74: l.p. | B74: Zawodnik
A75: 29. | B75: ………………………………………………………………………………………………………
A76: 30. | B76: ………………………………………………………………………………………………………
A77: 31. | B77: ………………………………………………………………………………………………………
A78: 32. | B78: ………………………………………………………………………………………………………
A79: R8. | B79: ………………………………………………………………………………………………………
A81: Karta zgłoszenia drużyny
A82: …………………………………………………………………………………………………………………..
A83: Drużyna
A84: l.p. | B84: Zawodnik
A85: 33. | B85: ………………………………………………………………………………………………………
A86: 34. | B86: ………………………………………………………………………………………………………
A87: 35. | B87: ………………………………………………………………………………………………………
A88: 36. | B88: ………………………………………………………………………………………………………
A89: R9. | B89: ………………………………………………………………………………………………………
A91: Karta zgłoszenia drużyny
A92: …………………………………………………………………………………………………………………..
A93: Drużyna
A94: l.p. | B94: Zawodnik
A95: 37. | B95: ………………………………………………………………………………………………………
A96: 38. | B96: ………………………………………………………………………………………………………
A97: 39. | B97: ………………………………………………………………………………………………………
A98: 40. | B98: ………………………………………………………………………………………………………
A99: R10. | B99: ………………………………………………………………………………………………………
A101: Karta zgłoszenia drużyny
A102: …………………………………………………………………………………………………………………..
A103: Drużyna
A104: l.p. | B104: Zawodnik
A105: 41. | B105: ………………………………………………………………………………………………………
A106: 42. | B106: ………………………………………………………………………………………………………
A107: 43. | B107: ………………………………………………………………………………………………………
A108: 44. | B108: ………………………………………………………………………………………………………
A109: R11. | B109: ………………………………………………………………………………………………………
A111: Karta zgłoszenia drużyny
A112: …………………………………………………………………………………………………………………..
A113: Drużyna
A114: l.p. | B114: Zawodnik
A115: 45. | B115: ………………………………………………………………………………………………………
A116: 46. | B116: ………………………………………………………………………………………………………
A117: 47. | B117: ………………………………………………………………………………………………………
A118: 48. | B118: ………………………………………………………………………………………………………
A119: R12. | B119: ………………………………………………………………………………………………………

Sheet karta_kapitana
A1: KARTA KAPITANA DRUŻYNY
A2: Drużyna | C2: RAZEM | F2: I SERIA | I2: II SERIA | L2: III SERIA
C3: m.p | D3: w | E3: p | F3: m.p | G3: w | H3: p | I3: m.p | J3: w | K3: p | L3: m.p | M3: w | N3: p
A4: 1
A5: 2
A6: 3
A7: 4
A8: R.
A9: RAZEM
A11: KARTA KAPITANA DRUŻYNY
A12: Drużyna | C12: RAZEM | F12: I SERIA | I12: II SERIA | L12: III SERIA
C13: m.p | D13: w | E13: p | F13: m.p | G13: w | H13: p | I13: m.p | J13: w | K13: p | L13: m.p | M13: w | N13: p
A14: =A4+4 -> 5
A15: =A5+4 -> 6
A16: =A6+4 -> 7
A17: =A7+4 -> 8
A18: R.
A19: RAZEM
A21: KARTA KAPITANA DRUŻYNY
A22: Drużyna | C22: RAZEM | F22: I SERIA | I22: II SERIA | L22: III SERIA
C23: m.p | D23: w | E23: p | F23: m.p | G23: w | H23: p | I23: m.p | J23: w | K23: p | L23: m.p | M23: w | N23: p
A24: =A14+4 -> 9
A25: =A15+4 -> 10
A26: =A16+4 -> 11
A27: =A17+4 -> 12
A28: R.
A29: RAZEM
A31: KARTA KAPITANA DRUŻYNY
A32: Drużyna | C32: RAZEM | F32: I SERIA | I32: II SERIA | L32: III SERIA
C33: m.p | D33: w | E33: p | F33: m.p | G33: w | H33: p | I33: m.p | J33: w | K33: p | L33: m.p | M33: w | N33: p
A34: =A24+4 -> 13
A35: =A25+4 -> 14
A36: =A26+4 -> 15
A37: =A27+4 -> 16
A38: R.
A39: RAZEM
A41: KARTA KAPITANA DRUŻYNY
A42: Drużyna | C42: RAZEM | F42: I SERIA | I42: II SERIA | L42: III SERIA
C43: m.p | D43: w | E43: p | F43: m.p | G43: w | H43: p | I43: m.p | J43: w | K43: p | L43: m.p | M43: w | N43: p
A44: =A34+4 -> 17
A45: =A35+4 -> 18
A46: =A36+4 -> 19
A47: =A37+4 -> 20
A48: R.
A49: RAZEM
A51: KARTA KAPITANA DRUŻYNY
A52: Drużyna | C52: RAZEM | F52: I SERIA | I52: II SERIA | L52: III SERIA
C53: m.p | D53: w | E53: p | F53: m.p | G53: w | H53: p | I53: m.p | J53: w | K53: p | L53: m.p | M53: w | N53: p
A54: =A44+4 -> 21
A55: =A45+4 -> 22
A56: =A46+4 -> 23
A57: =A47+4 -> 24
A58: R.
A59: RAZEM
A61: KARTA KAPITANA DRUŻYNY
A62: Drużyna | C62: RAZEM | F62: I SERIA | I62: II SERIA | L62: III SERIA
C63: m.p | D63: w | E63: p | F63: m.p | G63: w | H63: p | I63: m.p | J63: w | K63: p | L63: m.p | M63: w | N63: p
A64: =A54+4 -> 25
A65: =A55+4 -> 26
A66: =A56+4 -> 27
A67: =A57+4 -> 28
A68: R.
A69: RAZEM
A71: KARTA KAPITANA DRUŻYNY
A72: Drużyna | C72: RAZEM | F72: I SERIA | I72: II SERIA | L72: III SERIA
C73: m.p | D73: w | E73: p | F73: m.p | G73: w | H73: p | I73: m.p | J73: w | K73: p | L73: m.p | M73: w | N73: p
A74: =A64+4 -> 29
A75: =A65+4 -> 30
A76: =A66+4 -> 31
A77: =A67+4 -> 32
A78: R.
A79: RAZEM
A81: KARTA KAPITANA DRUŻYNY
A82: Drużyna | C82: RAZEM | F82: I SERIA | I82: II SERIA | L82: III SERIA
C83: m.p | D83: w | E83: p | F83: m.p | G83: w | H83: p | I83: m.p | J83: w | K83: p | L83: m.p | M83: w | N83: p
A84: =A74+4 -> 33
A85: =A75+4 -> 34
A86: =A76+4 -> 35
A87: =A77+4 -> 36
A88: R.
A89: RAZEM

Sheet 3_27
Q1: SERIA: | U1: NR STOL:
A2: Numer gry | B2: Wysokość licytacji | C2: Gra zawodnik | D2: 9, 10, 11, 12, 23, 24 Podstawa gry | E2: Ze szczytami | F2: Bez szczytów | G2: Podwyższenie wyniku | M2: Wartość gry | O2: Klub: | R2: Klub: | U2: Klub: | X2: Ramsze
G3: Z ręki | H3: Sznajder | I3: Sznajder zapowiedziany | J3: Sznajder szwarc | K3: Sznajder szwarc zapow. | L3: Overt | O3: Zawodnik: | R3: Zawodnik: | U3: Zawodnik:
O4: Nr. Start.: | R4: Nr. Start.: | U4: Nr. Start.:
M5: + | N5: - | O5: A | P5: Wygr. | Q5: Przegr. | R5: B | S5: Wygr. | T5: Przegr. | U5: C | V5: Wygr. | W5: Przegr.
A6: 1.
A7: 2.
A8: 3.
A9: 4.
A10: 5.
A11: 6.
A12: 7.
A13: 8.
A14: 9.
A15: 10.
A16: 11.
A17: 12.
A18: 13.
A19: 14.
A20: 15.
A21: 16.
A22: 17.
A23: 18.
A24: 19.
A25: 20.
A26: 21.
A27: 22.
A28: 23.
A29: 24.
A30: 25.
A31: 26.
A32: 27.
A33: Punkty z gry
A34: + (wygrane – przegrane)
A35: + przegrane gry przeciwników
A36: PUNKTY RAZEM
A37: Dopłaty …………….. zł | O37: zł | R37: zł | U37: zł
A38: Podpisy

Sheet 4_36
S1: SERIA: | X1: NR STOL:
A2: Numer gry | B2: Wysokość licytacji | C2: Gra zawodnik | D2: 9, 10, 11, 12, 23, 24 Podstawa gry | E2: Ze szczytami | F2: Bez szczytów | G2: Podwyższenie wyniku | M2: Wartość gry | O2: Klub: | R2: Klub: | U2: Klub: | X2: Klub: | AA2: Ramsze
G3: Z ręki | H3: Sznajder | I3: Sznajder zapowiedziany | J3: Sznajder szwarc | K3: Sznajder szwarc zapow. | L3: Overt | O3: Zawodnik: | R3: Zawodnik: | U3: Zawodnik: | X3: Zawodnik:
O4: Nr. Start.: | R4: Nr. Start.: | U4: Nr. Start.: | X4: Nr. Start.:
M5: + | N5: - | O5: A | P5: Wygr. | Q5: Przegr. | R5: B | S5: Wygr. | T5: Przegr. | U5: C | V5: Wygr. | W5: Przegr. | X5: D | Y5: Wygr. | Z5: Przegr.
A6: 1.
A7: 2.
A8: 3.
A9: 4.
A10: 5.
A11: 6.
A12: 7.
A13: 8.
A14: 9.
A15: 10.
A16: 11.
A17: 12.
A18: 13.
A19: 14.
A20: 15.
A21: 16.
A22: 17.
A23: 18.
A24: 19.
A25: 20.
A26: 21.
A27: 22.
A28: 23.
A29: 24.
A30: 25.
A31: 26.
A32: 27.
A33: 28.
A34: 29.
A35: 30.
A36: 31.
A37: 32.
A38: 33.
A39: 34.
A40: 35.
A41: 36.
A42: Punkty z gry
A43: + (wygrane – przegrane)
A44: + przegrane gry przeciwników
A45: PUNKTY RAZEM
A46: Dopłaty …………….. zł | O46: zł | R46: zł | U46: zł | X46: zł
A47: Podpisy
